Cogmind - Beta 17.1 @@@ ROGUE MODE // 2026.09.18 @ 16:13:31 Player: naththebg Result: Destroyed by B-99 Colossus with Multirail Performance ------------- Evolutions (9) 4500 Regions Visited (35) 7000 Robots Destroyed (1775) 8875 Value Destroyed (102579) 102579 Prototype IDs (169) 3380 Alien Tech Used (8) 1600 Bonus (139779) 139779 TOTAL SCORE: 267713 Bonus ------- Triggered High Security 3500 High Alert Combat Kills 63550 Follower Combat Kills 2791 Prayed to X0-1V1 5000 Major X0-1V1 Interference 35750 Entered Garrisons 600 Network Hubs Disabled 400 Acquired ECA 300 Met Zhirov 300 Met Warlord at Base 500 MAIN.C Attacked Warlord 500 Warlord Defense Kills 6230 Met R17 at Cetus 500 Met R17 at Research 2000 Met Warlord at Research 2000 Scanned by Researcher 500 Met Sigix 2000 Destroyed Superfortress 15000 Friendly Fire -1642 Cogmind --------- Core Integrity 0/1370 Matter 1000/1000 Energy 98/100 System Corruption 14% Temperature Cool (-666) Movement Core (50) Location -1/Access Parts ------- > --- POWER (3) -------- (None) > --- PROPULSION (5) --- (None) > --- UTILITY (13) ----- Concept Phasing Heat Sink > --- WEAPON (5) ------- (None) > --- INVENTORY (5) ---- Concept NT7 Matterbank (750) Graphene Brace Concept Impact Drone Bay (2/6) Sigix Containment Pod Peak State ------------ > --- POWER ------------ Multi-Antimatter Reactor > --- PROPULSION ------- Armored-Biometal Exoskeleton > --- UTILITY ---------- Armored Scrap Engine Concept Phasing Heat Sink Concept Thermoelectric Network Concept Antigrav Storage Unit Concept Networked Targeting System Experimental Core Analyzer Concept Reaction Jets Concept Cloak Mesh Phase Armor > --- WEAPON ----------- Concept Helical Railcannon Hpw. Kinetic Helical Construct/C > --- INVENTORY -------- Concept Zero-point Core Concept Thermoelectric Network Concept Antigrav Storage Unit Concept NT7 Matterbank Concept Networked Targeting System Advanced Launcher Guidance Computer Concept Weapon Articulator Experimental Kinecellerator Mini Quantum Capacitor Graphene Brace Concept Hardlight Director Phase Redirector Concept Matter Streamer Crosscalibrator Concept Impact Drone Bay Concept Impact Drone Bay Transdimensional Reconstructor High-powered Transdimensional Reconstructor Concept EMP Blanket Launcher Concept Rapid Grenade Launcher Concept Tactical Fusion Warhead Concept Tactical Fusion Warhead Sigix Containment Pod Sigix Corpse [Rating: 291] Favorites ----------- Power Constructs Engine Heavy Ion Engine Power Core Fission Core Reactor Constructs Propulsion Constructs Treads Light Treads Leg Constructs Wheel Compact Wheel Utility Armored Scrap Engine Device Armored Scrap Engine Storage Huge Storage Unit Processor Experimental Targeting Computer Hackware Advanced Hacking Suite Protection Improved Medium Armor Plating Artifact Phase Armor Weapon Constructs Energy Gun Subdweller Laser Energy Cannon Improved EM Pulse Cannon Ballistic Gun Subdweller Machine Gun Ballistic Cannon Constructs Launcher Tactical Quantum Warhead Impact Weapon Hammer Slashing Weapon Experimental Terror Saw Special Melee Weapon Dirty Datajack Build | -11 -10 -10 -10 -8 -8 -8 -8 -8 -6 -6 -6 -6 -6 -6 -6 -5 -5 -5 -5 -5 -5 -4 -4 -4 -4 -4 -4 -4 -3 -3 -3 -2 -2 -2 -1 ------- Run | Yrd Mat Min Sub Mat Gar Mat Sto Rec Fac Gar Fac Ext Cet Arc Hub Fac Was Fac Upp Upp Zhi Pro Fac Gar Fac Upp Upp War Pro Res Qua Res Tes Frg Acc Slots Evolved 18 | . . . . 4 . . . . 4 . . . . . . 2 . . . . . . 2 . . . . . . 2 . 2 . . 2 Power 1 | . . . . . . . . . 1 . . . . . . . . . . . . . . . . . . . . . . . . . . Propulsion 3 | . . . . 1 . . . . 1 . . . . . . 1 . . . . . . . . . . . . . . . . . . . Utility 12 | . . . . 3 . . . . 2 . . . . . . 1 . . . . . . 2 . . . . . . 1 . 1 . . 2 Weapon 2 | . . . . . . . . . . . . . . . . . . . . . . . . . . . . . . 1 . 1 . . . Parts Attached 308 | 7 13 2 7 60 4 3 8 10 10 1 3 4 5 3 10 5 . 8 1 . 3 2 14 4 2 3 6 9 1 25 13 5 4 41 12 Power 14 | 1 1 . 2 5 1 . 1 . . . . . . . . . . . . . . . 1 . . . . . . 2 . . . . . Engine 8 | 1 1 . 2 3 . . 1 . . . . . . . . . . . . . . . . . . . . . . . . . . . . Core 3 | . . . . 2 1 . . . . . . . . . . . . . . . . . . . . . . . . . . . . . . Reactor 3 | . . . . . . . . . . . . . . . . . . . . . . . 1 . . . . . . 2 . . . . . Propulsion 20 | 2 3 . 2 5 2 2 2 1 . . . . . . . 1 . . . . . . . . . . . . . . . . . . . Treads 16 | 2 1 . 1 5 2 2 2 1 . . . . . . . . . . . . . . . . . . . . . . . . . . . Leg 2 | . 1 . . . . . . . . . . . . . . 1 . . . . . . . . . . . . . . . . . . . Wheel 2 | . 1 . 1 . . . . . . . . . . . . . . . . . . . . . . . . . . . . . . . . Hover . | . . . . . . . . . . . . . . . . . . . . . . . . . . . . . . . . . . . . Flight . | . . . . . . . . . . . . . . . . . . . . . . . . . . . . . . . . . . . . Utility 185 | 2 6 1 1 17 1 . 2 3 9 1 2 1 2 . 5 3 . 8 1 . 3 2 13 4 2 3 6 9 1 15 13 5 2 34 8 Device 133 | 1 3 1 . 9 1 . 1 3 7 1 2 1 . . 4 2 . 7 1 . 1 1 10 4 2 3 6 5 1 9 9 3 2 27 6 Storage 11 | 1 2 . . . . . . . 1 . . . 1 . . . . 1 . . . . . . . . . . . 1 . 1 . 3 . Processor 16 | . . . . 1 . . . . 1 . . . . . 1 1 . . . . . . 2 . . . . 3 . 4 1 . . 1 1 Hackware 2 | . . . . . . . . . . . . . . . . . . . . . 1 . . . . . . . . . 1 . . . . Protection 21 | . 1 . 1 7 . . 1 . . . . . 1 . . . . . . . 1 1 1 . . . . 1 . 1 1 1 . 2 1 Artifact 2 | . . . . . . . . . . . . . . . . . . . . . . . . . . . . . . . 1 . . 1 . Weapon 89 | 2 3 1 2 33 . 1 3 6 1 . 1 3 3 3 5 1 . . . . . . . . . . . . . 8 . . 2 7 4 Energy Gun 25 | 2 . 1 1 9 . 1 . 1 . . . 1 2 3 2 1 . . . . . . . . . . . . . . . . . 1 . Energy Cannon 28 | . 1 . . 15 . . 2 1 . . . 1 . . 2 . . . . . . . . . . . . . . 3 . . 2 1 . Ballistic Gun 11 | . . . 1 2 . . . 3 . . . 1 1 . 1 . . . . . . . . . . . . . . 1 . . . 1 . Ballistic Cannon 11 | . 2 . . 2 . . . . 1 . 1 . . . . . . . . . . . . . . . . . . 3 . . . 1 1 Launcher 12 | . . . . 5 . . 1 . . . . . . . . . . . . . . . . . . . . . . 1 . . . 2 3 Special Weapon . | . . . . . . . . . . . . . . . . . . . . . . . . . . . . . . . . . . . . Impact Weapon 1 | . . . . . . . . 1 . . . . . . . . . . . . . . . . . . . . . . . . . . . Slashing Weapon 1 | . . . . . . . . . . . . . . . . . . . . . . . . . . . . . . . . . . 1 . Piercing Weapon . | . . . . . . . . . . . . . . . . . . . . . . . . . . . . . . . . . . . . Special Melee Weapon . | . . . . . . . . . . . . . . . . . . . . . . . . . . . . . . . . . . . . Unidentified Prototypes 81 | . 1 . . 9 . 1 1 2 1 . . . 3 . 7 1 . 5 . . 3 . 1 . . . . 4 . 7 8 . 1 24 2 Corrupted Parts 2 | . . . 1 . . . . . . . . . . . . . . . . . . . . . . . . . . 1 . . . . . System Corruption 20 | . . . 10 . . . . . . . . . . . . . . . . . . . . . . . . . . 10 . . . . . Parts Lost 77 | . 3 1 5 7 1 . 3 1 1 1 1 . . . 1 1 . . . . . . 3 . 2 . . 1 . . 4 . 1 13 27 Power 7 | . 1 . 1 . . . 1 . . . . . . . . . . . . . . . 1 . . . . . . . . . . . 3 Propulsion 11 | . 1 . 2 3 . . . . . . . . . . . . . . . . . . . . . . . . . . . . . . 5 Utility 47 | . 1 . 1 3 . . 1 1 1 1 1 . . . 1 1 . . . . . . 2 . 2 . . 1 . . 4 . 1 12 13 Weapon 12 | . . 1 1 1 1 . 1 . . . . . . . . . . . . . . . . . . . . . . . . . . 1 6 Highest Loss Streak 9 | . 3 1 2 3 1 . 2 1 1 1 1 . . . 1 1 . . . . . . 2 . 2 . . 1 . . 3 . 1 3 9 To Critical Strikes 2 | . 1 . . . . . . . . . . . . . . . . . . . . . . . . . . . . . . . . 1 . Average Backups 20 | 4 10 15 12 18 19 20 18 16 17 18 18 18 20 19 19 19 20 23 23 25 25 24 24 24 23 23 22 22 22 22 21 18 18 18 17 Power . | . . 1 . 1 1 1 . . . . 1 2 2 2 2 2 2 1 1 2 1 1 . . . . . . 1 1 1 . 1 1 . Propulsion 1 | 2 3 4 3 2 4 5 4 4 1 1 . . . . . . . . . . . . . . . . 1 1 1 . . . . . . Utility 13 | . 3 5 4 3 5 5 4 6 10 12 11 11 12 14 12 12 13 17 17 18 18 19 18 19 19 19 19 18 17 16 12 10 9 11 12 Weapon 4 | . 3 5 4 10 8 9 8 6 4 5 5 5 5 3 4 5 5 4 4 5 4 3 4 4 2 3 . 1 2 3 4 2 3 2 3 Tool/Special . | . . . . . . . . . . . . . . . . . . . . . . . . . . . . . . . . . . . . Unused Backups 170 | . 2 . . 8 5 . . 12 25 2 13 2 2 4 3 2 . 2 2 3 1 3 16 6 8 4 9 3 1 6 7 3 1 11 4 Power 9 | . . . . 1 . . . 2 . . . . 1 . . . . 1 . . 1 . . . . . . . . . . . . 3 . Propulsion 18 | . 1 . . . . . . 1 5 . 1 . 1 . . . . . . . . . . . . 3 3 . . 1 . 2 . . . Utility 49 | . . . . . 1 . . . 6 1 5 . . . 2 1 . 1 . 1 . . 8 2 2 1 . 3 . 2 4 1 . 4 4 Weapon 93 | . 1 . . 7 4 . . 9 14 1 7 2 . 4 1 1 . . 2 2 . 3 8 4 6 . 5 . 1 3 3 . 1 4 . Tool/Special 1 | . . . . . . . . . . . . . . . . . . . . . . . . . . . 1 . . . . . . . . Average Slot Usage (%) 61 | . 98 99 99 96 99 100 99 74 56 55 55 52 50 51 49 49 50 49 50 50 48 49 55 55 54 54 55 54 55 54 52 56 53 54 51 Engine 1 | . 13 12 12 6 6 . 5 3 2 . . . . . . . . . . . . . . . . . . . . . . . . . . Core 1 | . . . . 1 1 8 2 3 . . 5 1 6 6 5 3 5 1 . . . 5 2 . . 1 . . . . . . . . . Reactor 2 | . . . . . . . . . 3 5 . 3 . . . 1 . 3 5 4 4 . 3 4 5 3 4 5 5 4 4 4 4 4 2 Treads 4 | . 25 25 24 13 25 25 25 11 . 5 . . . . . . . . . . . . . 2 5 1 2 1 . . 2 3 . . . Leg 1 | . . . . . . . . 3 3 . . . . . . 1 4 3 5 . . . 1 2 . . . . 4 4 1 . 4 4 2 Device 21 | . 11 12 2 18 14 16 16 15 25 30 29 25 25 25 24 21 22 21 22 22 18 11 20 25 24 24 25 21 20 19 17 20 21 26 32 Storage 5 | . 13 12 12 8 8 8 8 8 6 6 6 6 6 6 6 5 5 5 5 5 5 5 5 5 5 5 5 5 5 4 4 4 4 4 2 Processor 6 | . . . . 2 8 8 8 8 4 . . . . . . 4 5 5 5 5 5 5 10 10 10 10 10 10 15 15 16 12 12 7 3 Protection 1 | . 1 . 9 9 9 8 7 2 . . . . . . . . . . . . . 4 2 . . . . 2 . . . 3 2 . . Energy Cannon 4 | . 1 12 12 15 8 8 14 10 3 . 5 2 3 3 5 5 5 4 . . . . 2 2 . 1 3 4 1 2 3 2 4 3 . Ballistic Cannon 3 | . 25 18 7 . 15 16 9 . 2 5 1 3 3 2 . . . . 4 4 5 5 2 2 5 3 1 . 3 2 . 1 . 1 2 Peak Build Rating 291 | 7 21 22 13 51 42 43 46 77 105 113 116 104 111 117 112 121 122 140 142 138 140 139 156 162 162 164 172 167 171 195 208 220 223 291 286 Average Rating 125 | 4 8 12 11 40 40 42 42 56 97 101 112 96 103 110 105 112 115 130 131 135 135 137 147 155 159 159 161 158 169 181 186 210 209 241 238 On Entrance 112 | . 7 12 13 11 37 42 42 43 70 99 113 94 98 111 109 104 114 122 135 132 136 136 138 150 162 140 158 158 167 170 179 202 200 206 256 Avg Prop Armor Cover (%) 7 | 33 6 . 8 7 . . . . . . . . . . . . . . . . . . . . . . . . . . . . . . 31 Naked Turns . | . . . . . . . . . . . . . . . . . . . . . . . . . . . . . . . . . . . . Heaviest Build 202 | 14 55 54 58 85 82 78 81 81 106 106 92 105 141 146 145 112 112 183 182 162 153 167 168 162 134 186 202 165 165 192 196 202 181 177 133 Greatest Support 291 | 40 40 40 40 60 60 60 60 64 91 104 118 123 106 106 123 123 110 132 132 170 170 170 199 291 291 291 204 204 244 287 287 179 179 212 212 Greatest Overweight (x) 5 | 2 3 1 5 5 1 1 1 3 2 1 1 1 1 1 1 1 1 2 1 1 . . . . . 1 1 . . . 1 1 1 . 1 Average Overweight (x) . | . . 1 1 2 1 1 1 . . . . . . 1 . . 1 1 1 . . . . . . . . . . . . . . . . Largest Inventory Capacity 25 | 8 20 20 20 20 20 20 20 20 20 20 20 20 25 25 25 20 20 25 25 25 25 25 25 25 25 25 25 25 25 25 25 25 25 25 25 Average Capacity 22 | 7 15 20 20 20 20 20 20 20 20 20 20 20 22 25 20 20 20 24 25 25 25 25 25 25 25 25 25 25 25 25 25 25 25 25 24 Most Carried 25 | 6 18 17 16 20 20 20 20 20 20 20 20 20 25 25 22 20 20 25 25 25 25 25 25 25 25 25 25 25 25 25 25 25 25 25 25 Average Carried 21 | 4 11 16 13 18 19 20 19 17 18 19 19 18 20 22 19 19 20 23 23 24 25 24 24 24 23 24 23 24 24 24 24 24 24 23 20 Final Capacity 25 | 8 20 20 20 20 20 20 20 20 20 20 20 20 25 25 20 20 20 25 25 25 25 25 25 25 25 25 25 25 25 25 25 25 25 25 25 Final Carried 25 | 6 17 16 11 20 20 20 20 16 18 20 17 20 25 21 20 20 20 23 25 25 25 25 25 25 25 25 23 25 24 25 25 24 21 21 20 Scrap Engine Consumption 317 | . . . . . . . . 46 54 6 10 5 4 5 1 9 3 4 2 . 2 4 28 7 8 4 8 19 2 21 14 5 4 35 7 Constructs Created 8 | . . . . . . . . 5 . . . . . . 3 . . . . . . . . . . . . . . . . . . . . Constructs Modified 468 | . . . . . . . . 31 53 13 21 16 4 2 12 3 1 16 8 14 1 2 13 34 1 68 78 5 5 9 33 4 3 16 2 Class Distribution -------------------- 65% | Construct 9% | Scavenger-Construct 6% | Scavenger-Gunner 4% | Commander-Construct 3% | Gunner 3% | Tank 3% | Mutant Dominant Class ---------------- Mutant | -10/Materials Gunner | -10/Mines Scavenger-Tank | -10/Subcaves Tank | -8/Materials Scavenger-Gunner | -8/Garrison Scavenger-Gunner | -8/Materials Scavenger-Gunner | -8/Storage Construct | -8/Recycling Construct | -6/Factory Construct | -6/Garrison Construct | -6/Factory Construct | -6/Extension Construct | -6/Cetus Construct | -6/Archives Construct | -6/Hub_04(d) Construct | -5/Factory Construct | -5/Waste Construct | -5/Factory Construct | -5/Upper Caves Commander-Construct | -5/Upper Caves Construct | -5/Zhirov Construct | -4/Proximity Caves Construct | -4/Factory Construct | -4/Garrison Construct | -4/Factory Construct | -4/Upper Caves Construct | -4/Upper Caves Construct | -4/Warlord Construct | -3/Proximity Caves Construct | -3/Research Scavenger-Construct | -3/Quarantine Scavenger-Construct | -2/Research Scavenger-Construct | -2/Testing Scavenger-Construct | -2/Protoforge Gunner | -1/Access Resources | -11 -10 -10 -10 -8 -8 -8 -8 -8 -6 -6 -6 -6 -6 -6 -6 -5 -5 -5 -5 -5 -5 -4 -4 -4 -4 -4 -4 -4 -3 -3 -3 -2 -2 -2 -1 ----------- Run | Yrd Mat Min Sub Mat Gar Mat Sto Rec Fac Gar Fac Ext Cet Arc Hub Fac Was Fac Upp Upp Zhi Pro Fac Gar Fac Upp Upp War Pro Res Qua Res Tes Frg Acc Matter Collected 50593 | 256 630 118 270 1250 477 380 643 806 1707 1426 765 880 80 30 149 226 357 724 641 48 . 454 2578 949 4364 1177 1817 450 496 2103 3455 3079 1527 11339 4942 Remotely 12384 | . . . . . . . . . . . . . . . . . . . . . . . . . 1444 . . . . . 1082 429 . 6560 2869 Salvage Created 96711 | 110 519 161 233 2798 528 423 2146 862 3251 2611 1354 1164 408 599 1006 824 1414 4649 607 41 . 497 8295 2614 7665 1672 1537 3532 1089 4718 7523 5019 2019 15825 8998 Parts 3459 | 8 44 11 15 145 52 30 100 34 125 58 34 40 11 29 38 39 4 94 19 4 . 14 169 123 369 80 40 163 55 175 342 50 31 555 359 Haulers Intercepted 50 | . 1 . . 6 . 1 5 . . . 2 2 . . 8 2 . 3 . . . . 11 . 5 . . . . 1 2 . . . 1 Recyclers Shooed 19 | 1 1 . . 2 . . 1 . 4 . . . . . 2 . . 3 . . . . 4 . . . . . . . . . . . 1 Parts Field Recycled . | . . . . . . . . . . . . . . . . . . . . . . . . . . . . . . . . . . . . Retrieved Matter . | . . . . . . . . . . . . . . . . . . . . . . . . . . . . . . . . . . . . Parts Self-Destructed 217 | . . . 25 . . . . . . . . . . . . . . . 21 4 . 16 . . . 78 18 . 55 . . . . . . Prevented 13 | . . . . . . . . . . . . . . . . . . . 3 . . 2 . . . 1 7 . . . . . . . . Parts Restored 4 | . . . . . . . . . . . . . . . . . . . . . . . . . . . . . . . . . . 4 . Faulty 4 | . . . . . . . . . . . . . . . . . . . . . . . . . . . . . . . . . . 4 . Kills | -11 -10 -10 -10 -8 -8 -8 -8 -8 -6 -6 -6 -6 -6 -6 -6 -5 -5 -5 -5 -5 -5 -4 -4 -4 -4 -4 -4 -4 -3 -3 -3 -2 -2 -2 -1 ------- Run | Yrd Mat Min Sub Mat Gar Mat Sto Rec Fac Gar Fac Ext Cet Arc Hub Fac Was Fac Upp Upp Zhi Pro Fac Gar Fac Upp Upp War Pro Res Qua Res Tes Frg Acc Combat Hostiles Destroyed 1450 | . 15 8 9 54 29 14 30 15 43 30 20 10 7 7 37 46 8 94 21 1 . 8 79 38 75 17 19 42 13 59 135 62 26 216 163 Melee 3 | . . . . . . . . . . . . . . . . . . 1 . . . . . . . . . . . . . . . 2 . Guns 12 | . 2 . 2 7 . . . . . . . . . . . . . . . . . . . . . . . . . . . . . 1 . Cannons 1053 | . 12 7 6 22 25 14 23 12 38 23 13 9 7 7 37 43 8 56 20 1 . 8 57 37 69 17 14 40 13 40 78 41 19 190 47 AOE 231 | . 1 . . 24 4 . 4 3 . 1 1 . . . . . . . . . . . . . 6 . . 2 . . 48 . . 21 116 Classes Destroyed 37 | 2 7 . 1 8 . . . . 2 1 . 1 . . . . 1 1 1 . . 1 2 . . . . . . . 1 1 1 6 . Worker 46 | . 1 1 . 2 . 1 . . 3 . 2 . . . 9 2 . 5 . . . . 5 . 5 . . . . 1 2 . . 3 4 Builder 40 | . . . . 1 . . 1 . 2 . . 2 . . 4 4 . 7 . . . . 8 . 3 . . . . 1 2 . 1 4 . Tunneler 5 | 1 1 . . . . . . . . . . . . . . 1 . . . . . . 1 . 1 . . . . . . . . . . Hauler 50 | . 1 . . 6 . 1 5 . . . 2 2 . . 8 2 . 3 . . . . 11 . 5 . . . . 1 2 . . . 1 Recycler 53 | 1 . . . 6 . . 5 . 6 . 1 2 . . 3 2 . 5 . . . . 14 . 4 . . . . 1 . . 1 . 2 Carrier 27 | . . . . . . . . . . . . . . . . . . 2 . . . . 3 1 . . . . . 1 4 6 . 10 . Minesweeper 1 | . . . . . . . . . . . . . . . . . . . . . . 1 . . . . . . . . . . . . . Mechanic 43 | . . . . 1 . . . . . . . . . . . . . 4 . . . . 1 1 1 . . . . 1 9 2 . 9 14 Operator 24 | . 1 . . 1 . . 4 . . . . . . 9 . . . 2 . . . . 1 . 2 . . . . . 2 . . 1 1 Drone 1 | . . . . . . . . . . . . . . . . . . . . . . . . . . . . . . . . . . 1 . Watcher 47 | . 3 . . 5 . 1 . . . . . . 2 . 4 3 . 4 . . . . 6 . 8 . . . . . 3 . 1 4 3 Swarmer 169 | . 3 6 4 18 20 6 . . 3 . 5 . . . 6 17 . 4 10 . . . 5 12 6 2 2 1 . 14 10 3 1 5 6 Cutter 19 | . . . . . . . . . . . . . . . . . . . . . . . . . . . . . . . . . . . 19 Saboteur 30 | . . . . . . . . . 1 . . . . . . 1 . 2 . . . . 1 . 4 . . . . . 5 1 . 11 4 Grunt 539 | . 10 2 4 21 2 5 20 6 21 20 7 4 . . 18 14 . 47 5 . . 3 31 11 31 8 3 17 3 10 38 17 12 80 69 Brawler 68 | . . . . 1 . . 1 3 . . . . . . . 2 . 9 1 . . . 1 . 3 1 2 3 1 . 13 5 3 14 5 Duelist 64 | . . . . 1 . . 1 . . . 1 1 . . . 1 . 6 1 . . . 2 1 3 1 . 4 . 1 5 5 3 16 11 Protector 42 | . . . . 1 . . 1 . . 1 . . . . . . . 4 . . . . 1 1 . . . 3 3 . 8 4 1 6 8 Researcher 7 | . . . . . . . . . . . . . . . . . . . . . . . . . . . . . . . 2 . . 5 . Sentry 135 | . . . 1 8 5 2 7 2 3 4 3 1 . 4 9 3 . 7 2 . . 1 12 8 10 2 1 . 1 7 7 10 . 14 1 Demolisher 17 | . . . . . . . . . . 1 1 . . . . . . . . . . . . 1 . . . 1 4 6 . 1 . . 2 Specialist 18 | . . . . 2 1 . . . 2 . . . . 3 . . . . . . . . . . . . . 3 . . . . . 3 4 Hunter 74 | . . . . 1 1 1 1 . 1 2 . 2 . . . 3 . 4 . . . 4 9 2 8 2 . 3 . 4 13 4 . 3 6 Programmer 111 | . . . . . . . . . 10 2 3 . . . 3 4 . 10 . 1 . . 11 2 8 . . . . 2 26 3 4 9 13 Heavy 9 | . . . . 1 . . . . 2 . . . . . 1 . . 1 . . . . 2 . . . . . . . . . . . 2 Q-Series 3 | . . . . . . . . . . . . . . . . . . . . . . . . . . . . . . . . . . 3 . Behemoth 17 | . . . . . . . . . . . . 1 . . . 1 . . 1 . . 1 2 . 2 1 . 3 1 1 . 1 . 1 1 Compactor 6 | . . . . . . . . . . . . . . . . . 6 . . . . . . . . . . . . . . . . . . Cetus Guard 7 | . . . . . . . . . . . . . 7 . . . . . . . . . . . . . . . . . . . . . . Lightning 3 | . . . . . . . . . . . . . . . . . . . . . . . . . . . . . . . 3 . . . . Hotshot 21 | . . . . . . . . . . . . . . . . . . . . . . . . . . . . . . . . . . 21 . Decapitator 11 | . . . . . . . . . . . . . . . . . . . . . . . . . . . . . . . . . . 11 . Immortal 5 | . . . . . . . . . . . . . . . . . . . . . . . . . . . . . . . . . . 5 . Investigator 5 | . . . . . . . . . . . . . . . . . . . . . . . . . . . . . . . 2 1 . . 2 Striker 27 | . . . . . . . . . . . . . . . . . . . . . . . 1 . . . . 1 . 13 3 5 . . 4 Executioner 20 | . . . . . . . . . . . . . . . . . . . . . . . 1 . . . . 3 . 1 4 3 . . 8 Alpha 7 2 | . . . . . . . . . . . . . . . . . . . . . . . . . . . . . . . . . . 2 . Fortress 1 | . . . . . . . . . . . . . . . . . . . . . . . . . . . . . . . . . 1 . . V-Series 10 | . . . . . . . . . . . . . . . . . . . . . . . . . . . . . . . . . . 10 . Protovariant G 1 | . . . . . . . . . . . . . . . . . . . . . . . . . . . . . . . . . 1 . . Subdweller 6 | . 2 . . . . . . 4 . . . . . . . . . . . . . . . . . . . . . . . . . . . Packrat 3 | . . . . . . . . . . . . . . . . . . . . . . . . . . 3 . . . . . . . . . Tinkerer 1 | . . . . . . . . . . . . . . . . . . . . . . . . . . . . . . . . . . 1 . Thug 10 | . . . . . . . . . . . . 1 . . . . 2 . . . . . . . . . 7 . . . . . . . . Savage 1 | . . . . . . . . . . . . 1 . . . . . . . . . . . . . . . . . . . . . . . Butcher 3 | . . . . . . . . . . . . . . . . . . . . . . . . . . . 3 . . . . . . . . Guerrilla 1 | . . . . . . . . . . . . . 1 . . . . . . . . . . . . . . . . . . . . . . Marauder 1 | . . . . . . . . . . . . . . . . . . . . . . . . . . . . 1 . . . . . . . Mutant 2 | . . . . . . . . . . . . . . . . . . . 1 . . . . . . . 1 . . . . . . . . Troll 1 | . . . . . . . . . . . . . . . . . . . . . . . . . . . . . . . . 1 . . . Best Kill Streak 80 | 2 3 4 4 8 5 8 11 3 6 5 4 6 5 7 17 17 4 22 8 1 . 3 31 10 23 7 5 6 4 17 41 41 6 29 80 Combat Bots Only 68 | . 3 3 4 8 5 4 6 3 5 5 4 6 4 4 7 14 4 21 8 1 . 2 8 10 20 7 5 6 4 16 32 29 6 24 68 Max Kills in Single Turn 13 | 1 1 2 1 3 3 1 5 2 6 2 1 1 1 1 2 2 1 2 2 1 . 1 2 2 2 2 2 1 1 1 11 1 1 9 13 Gunslinging . | . . . . . . . . . . . . . . . . . . . . . . . . . . . . . . . . . . . . Exploded 11 | . 1 . . 3 3 . 4 2 . 1 1 . . . . . . . . . . . . . 2 . . 1 . . 10 . . 8 11 Melee 1 | . . . . . . . . . . . . . . . . . . 1 . . . . . . . . . . . . . . . 1 . Uniques/NPCs Destroyed 1 | . . . . . . . . . . . . . . . . . . . . . . . . . . . . . . . . . . 1 . Superfortress (-2/Protoforge) Combat | -11 -10 -10 -10 -8 -8 -8 -8 -8 -6 -6 -6 -6 -6 -6 -6 -5 -5 -5 -5 -5 -5 -4 -4 -4 -4 -4 -4 -4 -3 -3 -3 -2 -2 -2 -1 -------- Run | Yrd Mat Min Sub Mat Gar Mat Sto Rec Fac Gar Fac Ext Cet Arc Hub Fac Was Fac Upp Upp Zhi Pro Fac Gar Fac Upp Upp War Pro Res Qua Res Tes Frg Acc Hostile Shots Fired 5182 | . 55 44 57 144 60 44 70 23 155 53 76 43 14 27 129 109 1 238 79 2 . 70 436 76 238 38 22 294 28 147 632 170 62 1063 483 Missed 1984 | . 15 21 11 44 21 4 24 5 55 21 29 16 3 10 57 28 1 79 29 1 . 26 167 22 98 12 6 109 7 53 173 100 33 493 211 Hits 3198 | . 40 23 46 100 39 40 46 18 100 32 47 27 11 17 72 81 . 159 50 1 . 44 269 54 140 26 16 185 21 94 459 70 29 570 272 Melee 70 | . . . . . . . . 4 . . . . . . . . . 3 . . . . . . 3 2 4 . . . 9 3 . 34 8 Projectile 3128 | . 40 23 46 100 39 40 46 14 100 32 47 27 11 17 72 81 . 156 50 1 . 44 269 54 137 24 12 185 21 94 450 67 29 536 264 AOE 71 | . . . . . . . . . . . . . . . . . . 1 . . . . 1 4 . . 1 5 7 5 2 1 . 16 28 Critical Strikes 198 | . 1 1 . 2 1 1 2 . 5 2 1 . 3 1 1 2 . 9 1 . . . 17 2 6 . 4 7 . 3 42 . 3 67 14 Actively Blocked 28 | . . . . . . . . . . . . . . . . . . . . . . . . . . . . 1 . . . . . 18 9 Part Disruptions 8 | . . . . . . . . . 2 . . . . . . . . 1 1 . . . . . . . . . . . . 1 . 1 2 Actively Blocked 1 | . . . . . . . . . . . . . . . . . . . . . . . . . . . . . . . . 1 . . . Damage Taken 51017 | . 606 204 470 1644 451 418 646 290 1198 262 327 166 159 212 580 1372 . 1667 405 9 . 428 3914 776 2128 435 257 1925 532 1258 6210 1041 738 12101 8188 Core 4510 | . 114 39 30 140 112 21 . 8 95 41 30 18 13 . 36 50 . 119 13 . . 33 380 64 131 39 6 92 30 99 239 12 . 1176 1330 Absorbed by Shields 17049 | . . . . . . . . . 294 281 320 178 166 177 623 99 . 1136 431 10 . 446 570 292 437 . 93 1411 363 1308 4192 625 182 2360 1055 Reduced by Siege Mode 226 | . . . . . . . . . . . . . . . . . . . . . . . . . . . . . . . 226 . . . . Redirected to Core 237 | . . . . . . . . . . . . . . . . . . . . . . . . . . . . . . . . . . 237 . Redirected to Shielding 395 | . . . . . . . . . . . . . . . . . . . . . . . . . . . . 152 . . . 103 7 133 . Ignored by Resistances 4757 | . . . . 76 8 41 124 25 160 67 27 17 . 4 85 80 . 251 17 . . 14 399 67 323 147 84 357 24 39 711 61 68 1194 287 Regen/Repaired (Parts) 23968 | . . . . . . . . 86 776 310 223 26 90 156 184 226 245 1021 1159 255 . 131 2255 631 36 1222 251 606 814 975 5200 129 438 5841 682 Core Remaining (%) 58 | 100 . . 39 . . . . 48 . . . . . . 88 . . . . . . 72 . . . . . . 73 . 48 . . 2 . Volleys Fired 3270 | 4 51 19 16 108 61 31 68 49 118 64 64 40 21 31 122 85 13 243 44 5 . 33 213 105 211 49 38 140 39 129 286 95 68 459 148 Largest 3 | 2 3 3 3 3 3 3 3 3 1 1 1 1 1 1 1 1 1 1 1 1 . 1 1 1 1 1 1 1 1 1 1 1 1 2 1 Hottest 584 | 80 120 120 155 207 104 104 175 207 271 105 325 241 134 95 143 190 190 190 115 365 . 365 265 163 109 201 329 491 491 454 213 180 180 584 385 Shots Fired 3689 | 8 104 42 44 276 111 39 169 71 116 64 64 40 21 31 122 85 13 237 44 5 . 32 212 105 206 49 38 140 39 127 271 95 67 457 145 Gun 115 | 8 10 6 21 62 . . . 6 . . . . . . . . . . . . . . . . . . . . . . . . . 2 . Cannon 3454 | . 94 36 23 173 107 39 167 62 116 64 64 40 21 31 122 85 13 237 44 5 . 32 212 105 206 49 38 140 39 127 243 94 67 449 110 Launcher 120 | . . . . 41 4 . 2 3 . . . . . . . . . . . . . . . . . . . . . . 28 1 . 6 35 Special . | . . . . . . . . . . . . . . . . . . . . . . . . . . . . . . . . . . . . Kinetic 1385 | . 92 23 14 14 57 35 70 12 26 . 12 37 10 . . . . 16 35 5 . 32 87 91 202 46 6 29 8 22 11 10 . 273 110 Thermal 1101 | 4 7 19 30 125 50 4 43 12 40 6 14 . 11 31 122 85 13 30 . . . . 12 8 . . 5 111 31 41 126 . 40 81 . Explosive 91 | . . . . 20 4 . . . . . . . . . . . . . . . . . . . . . . . . . 28 1 . 6 32 Electromagnetic 1015 | 4 5 . . 117 . . 56 47 50 58 38 3 . . . . . 191 9 . . . 113 6 4 3 27 . . 64 106 84 27 . 3 Entropic 97 | . . . . . . . . . . . . . . . . . . . . . . . . . . . . . . . . . . 97 . Robot Hit Streak 34 | 6 10 6 6 31 16 25 23 32 10 16 7 9 14 8 27 28 13 15 5 1 . 6 17 22 26 20 13 18 16 19 34 22 19 28 28 Robot Miss Streak 10 | 1 5 4 3 4 3 10 3 1 3 4 3 5 2 1 3 3 2 4 3 2 . 5 3 3 2 2 1 3 1 5 4 3 2 5 2 Penetration Max 2 | . . . . . . . . . . . . 1 . . . . . . 1 . . . 1 1 1 1 1 . 1 . 2 . . 2 2 Secondary Targets 1 | . . . . 1 . . . . . . . . . . . . . . . . . . . . . . . . . . . . . . . Max Gunslinging Chain 1 | . . . . 1 . . . . . . . . . . . . . . . . . . . . . . . . . . . . . . . Capacitor 189 | . . . . . . . . . . . . . . . . . . . . . . . . . . . . . . . . . . 189 . Shots Hit Robots 2580 | 6 56 16 21 174 47 34 105 43 74 44 42 25 19 25 101 81 12 171 24 1 . 19 156 73 146 34 24 111 31 90 203 78 50 333 111 Core Hits 2037 | 3 27 8 10 134 50 55 91 25 54 49 12 13 13 8 111 69 16 77 14 1 . 9 71 34 81 15 13 42 14 45 291 34 20 233 295 Critical Kills 14 | . . . 1 . . . 1 . . . . . . . . . . . . . . . 1 . 4 1 2 . . . 1 . 2 1 . Critical Parts Destroyed 16 | . . . . . . . . . 2 . . 1 . . . . . . . . . . . . 6 5 2 . . . . . . . . Critical Strikes 69 | . 4 1 3 4 1 . 3 . 2 . 1 1 . . 1 . . . . . . . 1 . 12 6 5 . . 1 1 . 2 19 1 Burn 5 | . . . 2 2 . . . . . . . . . . 1 . . . . . . . . . . . . . . . . . . . . Meltdown 5 | . . . 1 . . . 1 . . . . . . . . . . . . . . . 1 . . . . . . . . . 2 . . Destroy 28 | . . . . . . . . . 2 . . 1 . . . . . . . . . . . . 12 6 4 . . 1 1 . . 1 . Blast 10 | . 4 1 . . 1 . 1 . . . 1 . . . . . . . . . . . . . . . 1 . . . . . . . 1 Corrupt 3 | . . . . 2 . . 1 . . . . . . . . . . . . . . . . . . . . . . . . . . . . Sunder 18 | . . . . . . . . . . . . . . . . . . . . . . . . . . . . . . . . . . 18 . Melee Attacks 6 | . . . . . . . . . 6 . . . . . . . . . . . . . . . . . . . . . . . . . . Impact 6 | . . . . . . . . . 6 . . . . . . . . . . . . . . . . . . . . . . . . . . Slashing . | . . . . . . . . . . . . . . . . . . . . . . . . . . . . . . . . . . . . Piercing . | . . . . . . . . . . . . . . . . . . . . . . . . . . . . . . . . . . . . Sneak Attacks . | . . . . . . . . . . . . . . . . . . . . . . . . . . . . . . . . . . . . Combat Hostiles . | . . . . . . . . . . . . . . . . . . . . . . . . . . . . . . . . . . . . Follow-up Attacks . | . . . . . . . . . . . . . . . . . . . . . . . . . . . . . . . . . . . . Damage Inflicted 446749 | 72 1013 355 386 6461 1463 806 3755 1337 6593 5820 4654 3074 2359 3802 8965 8324 1389 18341 3473 166 . 2088 32662 14951 28629 5016 2846 15190 5054 12554 37089 21760 10238 119929 56135 Guns 1160 | 72 64 . 142 754 . . . 89 . . . . . . . . . . . . . . . . . . . . . . . . . 39 . Cannons 379763 | . 913 319 244 2853 1154 806 3099 972 6187 5392 4654 2997 2359 3802 8591 8264 1389 18132 3473 166 . 2088 32477 14951 26719 4979 2846 14602 5054 12455 21930 21760 10238 112130 21768 Explosions 64910 | . 33 36 . 2854 309 . 653 276 382 428 . 77 . . 331 17 . . . . . . 185 . 1729 37 . 588 . . 15159 . . 7585 34231 Melee . | . . . . . . . . . . . . . . . . . . . . . . . . . . . . . . . . . . . . Ramming 916 | . 3 . . . . . 3 . 24 . . . . . 43 43 . 209 . . . . . . 181 . . . . 99 . . . 175 136 Kinetic 171394 | . 913 178 126 224 796 722 1269 89 1351 . 620 2817 876 . . . . 1433 2927 166 . 2088 9770 13964 26104 4498 676 3681 1345 2067 1240 2009 . 67756 21689 Thermal 94304 | 32 65 177 260 1920 358 84 907 270 2679 507 1013 77 1483 3802 8591 8281 1389 2629 . . . . 1950 860 1316 37 . 11509 3709 4019 15243 51 4251 16835 . Explosive 59427 | . . . . 2104 309 . 80 . . . . . . . . . . . . . . . . . 391 . . . . . 15042 . . 7585 33916 Electromagnetic 93051 | 40 32 . . 2213 . . 1496 978 2539 5313 3021 180 . . 331 . . 14070 546 . . . 20942 127 637 481 2170 . . 6369 5564 19700 5987 . 315 Impact . | . . . . . . . . . . . . . . . . . . . . . . . . . . . . . . . . . . . . Slashing . | . . . . . . . . . . . . . . . . . . . . . . . . . . . . . . . . . . . . Piercing . | . . . . . . . . . . . . . . . . . . . . . . . . . . . . . . . . . . . . Entropic 27578 | . . . . . . . . . . . . . . . . . . . . . . . . . . . . . . . . . . 27578 . Phasic 79 | . . . . . . . . . . . . . . . . . . . . . . . . . . . . . . . . . . . 79 Highest Corruption 48 | . . 13 23 4 4 . . . 14 14 4 4 . . 7 2 14 20 31 37 17 18 8 11 17 17 13 . 8 11 48 7 9 28 14 Average Corruption 14 | . . 13 16 2 4 . . . 9 14 3 4 . . 5 2 10 13 28 28 17 17 6 11 9 17 13 . 8 6 31 1 7 13 5 Corruption Purged 8 | . . . . . . . . . . . . . . . 7 . . . . . . . . . . . . . . 1 . . . . . Corruption Blocked . | . . . . . . . . . . . . . . . . . . . . . . . . . . . . . . . . . . . . Effects 1022 | . . 25 49 22 10 . . . 61 37 12 9 . . 22 1 4 106 114 51 9 50 16 5 34 11 13 . 11 29 144 1 26 120 30 Message Errors 255 | . . 7 12 7 2 . . . 13 13 5 2 . . 3 . 1 21 34 15 2 15 4 3 7 3 4 . . 10 28 . 7 29 8 Matter Fused 249 | . . 7 16 6 4 . . . 13 10 4 . . . 7 . 1 24 30 6 3 7 3 1 9 4 4 . 6 4 39 1 6 28 6 Heat Flow Errors 121 | . . 1 3 1 1 . . . 3 4 . 3 . . 5 . 1 13 23 4 1 11 3 1 3 1 2 . . 4 18 . 3 9 3 Energy Discharges 127 | . . 3 4 1 . . . . 18 5 1 3 . . 4 . 1 12 13 8 1 7 . . 2 2 . . 2 3 17 . 4 13 3 Parts Rejected 20 | . . . . 1 1 . . . 1 1 . . . . . . . . 1 . . . 2 . 3 . 2 . . . 3 . 1 4 . Parts Fused 10 | . . 1 1 . . . . . . 1 1 . . . . . . 1 1 . . . . . . . . . . 1 1 . 1 1 . Data Loss (minor) 110 | . . 4 7 3 . . . . 9 3 . 1 . . 2 . . 16 10 11 2 5 1 . 1 . . . 2 2 16 . 2 11 2 Data Loss (major) 40 | . . 1 2 1 . . . . . . 1 . . . 1 . . 7 2 4 . 3 1 . 2 . 1 . 1 1 4 . . 5 3 Misfires 6 | . . . 1 . . . . . . . . . . . . . . . . . . . . . . . . . . . . . . 5 . Alerts 24 | . . 1 2 . 1 . . . 2 . . . . . . 1 . 6 . 3 . . 1 . 1 . . . . 2 1 . 1 1 1 Misdirections 9 | . . . . . . . . . . . . . . . . . . . . . . 1 . . 1 1 . . . . 1 . . 4 1 Weapon Failures 51 | . . . 1 2 1 . . . 2 . . . . . . . . 6 . . . 1 1 . 5 . . . . 2 16 . 1 10 3 Overload Shots . | . . . . . . . . . . . . . . . . . . . . . . . . . . . . . . . . . . . . Overflow Damage 71706 | . . 16 . 193 10 . 50 18 730 121 1253 270 135 1185 236 402 . 3002 572 . . 238 8798 2406 5408 821 238 1936 240 1795 3231 6065 3566 21515 7256 Projectiles 68103 | . . . . 101 . . 42 18 703 121 1253 270 135 1185 233 397 . 2980 572 . . 238 8798 2406 5179 811 238 1936 240 1777 2999 6065 3566 21068 4772 Explosions 3521 | . . 16 . 92 10 . 8 . 27 . . . . . 3 . . . . . . . . . 219 10 . . . . 232 . . 431 2473 Melee 82 | . . . . . . . . . . . . . . . . 5 . 22 . . . . . . 10 . . . . 18 . . . 16 11 Knockbacks 337 | . 12 1 1 2 13 18 17 . 9 . 3 4 . . . 1 . 8 3 . . 3 29 8 55 12 . 7 2 4 9 1 . 73 42 Impact 13 | . 1 . . . . . . . . . . . . . . 1 . 2 . . . . . . 3 . . . . 2 . . . 3 1 Kinetic 291 | . 9 1 1 2 13 17 14 . 9 . 3 4 . . . . . 5 3 . . 3 22 7 47 9 . 7 2 2 7 1 . 65 38 Secondary 33 | . 2 . . . . 1 3 . . . . . . . . . . 1 . . . . 7 1 5 3 . . . . 2 . . 5 3 Self-Inflicted Damage 2735 | . 28 . . 75 77 . 16 . 103 71 . . . . 190 . . . . . . . 8 . 38 30 . . . . 546 . . 445 1108 Shots 43 | . 1 . . 2 3 . 2 . 3 2 . . . . 2 . . . . . . . 1 . 1 1 . . . . 10 . . 4 11 Rammed 20 | . 2 . . . . . 1 . . . . . . . 5 . . . . . . . . . 6 . . . . . . . . . 6 Targets Rammed 55 | . 2 . . . . . 1 . 2 . . . . . 5 2 . 11 . . . . . . 6 . . . . 4 . . . 8 14 Kicked 35 | . . . . . . . . . 2 . . . . . . 2 . 11 . . . . . . . . . . . 4 . . . 8 8 Crushed . | . . . . . . . . . . . . . . . . . . . . . . . . . . . . . . . . . . . . Highest Temperature 466 | 72 122 90 301 438 63 241 305 176 361 204 352 294 . . 456 304 254 326 293 332 133 380 433 242 365 240 316 385 368 314 333 373 448 466 167 Average Temperature 101 | 38 27 27 111 114 6 56 55 41 87 95 126 107 . . 70 66 76 109 84 111 73 142 123 88 60 53 141 127 151 75 106 60 103 119 137 Received Heat Transfer 6532 | . 189 30 189 441 45 144 432 78 425 66 36 23 . 4 114 223 . 350 20 . . 4 215 76 284 63 39 332 13 49 391 55 66 1910 226 Thermoelectric Energy+ 25430 | . . . . . . . . . . . . . . . . . . . . . . . . . . . . . . . . . . 18427 7003 Effects 22 | . . . . 2 . . . . . . 1 . . . . . . . . . . 4 4 . . . 5 2 2 . 1 . 1 . . Shutdowns 2 | . . . . . . . . . . . 1 . . . . . . . . . . . . . . . . . 1 . . . . . . Energy Bleed 4 | . . . . . . . . . . . . . . . . . . . . . . . 2 . . . . 1 . . 1 . . . . Interference 13 | . . . . 2 . . . . . . . . . . . . . . . . . 4 1 . . . 5 . 1 . . . . . . Matter Decay 3 | . . . . . . . . . . . . . . . . . . . . . . . 1 . . . . 1 . . . . 1 . . Siege Activations 2 | . . . . . . . . . . . . . . . . . . . . . . . . . . . . . . . 2 . . . . Total Turns 52 | . . . . . . . . . . . . . . . . . . . . . . . . . . . . . . . 52 . . . . Longest Duration 47 | . . . . . . . . . . . . . . . . . . . . . . . . . . . . . . . 47 . . . . Martial Activations . | . . . . . . . . . . . . . . . . . . . . . . . . . . . . . . . . . . . . Shielding Activations . | . . . . . . . . . . . . . . . . . . . . . . . . . . . . . . . . . . . . Robots Disrupted 3 | . . . . . . . 2 . . . . . . . . . . . . . . . 1 . . . . . . . . . . . . Combat Hostiles 3 | . . . . . . . 2 . . . . . . . . . . . . . . . 1 . . . . . . . . . . . . Robots Corrupted 177 | . . . . 2 . . 2 . 5 10 8 1 . . . . . 42 1 . . . 32 2 2 2 5 . . 22 11 23 5 1 1 Combat Hostiles 140 | . . . . 1 . . 2 . 4 6 6 1 . . . . . 37 1 . . . 21 1 . . 5 . . 19 9 21 5 1 . Parts Fried 787 | . . . . 22 . . 6 10 20 59 19 . . . . . . 63 2 . . 1 168 2 6 1 35 . . 86 116 122 45 . 4 Impact Corruptions 19 | . . . . . . . . . . . . . . . . 1 . 2 . . . . 5 1 2 1 . . . 2 1 . . 3 1 Robots Melted 11 | . . . 1 . . . 1 . . . . . . . 1 4 . . . . . . 1 . . . . 1 . . . . 2 . . Combat Hostiles 8 | . . . 1 . . . 1 . . . . . . . . 3 . . . . . . 1 . . . . . . . . . 2 . . Parts Melted 31 | . . . . 4 . . 1 1 6 . 1 . . . 2 4 2 1 . . . . 2 . . . . 4 . . 2 . 1 . . Heat Transferred 46873 | 75 75 346 740 3458 481 111 1210 370 1327 450 297 50 450 925 10545 10143 1700 2700 . . . . 444 . 1000 50 . 376 660 864 4162 18 921 2925 . Parts Sabotaged 14 | . . . . . . . . . . . . . . . . . . 3 . . . . . . 2 . . . . . . 2 . . 7 Parts Stolen . | . . . . . . . . . . . . . . . . . . . . . . . . . . . . . . . . . . . . Parts Stripped . | . . . . . . . . . . . . . . . . . . . . . . . . . . . . . . . . . . . . Power Chain Reactions 34 | . 1 . . 6 . . 4 . 1 7 . 1 . . 2 . . . . . . . . . 9 1 . 2 . . . . . . . Alert | -11 -10 -10 -10 -8 -8 -8 -8 -8 -6 -6 -6 -6 -6 -6 -6 -5 -5 -5 -5 -5 -5 -4 -4 -4 -4 -4 -4 -4 -3 -3 -3 -2 -2 -2 -1 ------- Run | Yrd Mat Min Sub Mat Gar Mat Sto Rec Fac Gar Fac Ext Cet Arc Hub Fac Was Fac Upp Upp Zhi Pro Fac Gar Fac Upp Upp War Pro Res Qua Res Tes Frg Acc Maximum Alert Level 5 | . . . . 4 5 4 4 2 3 5 4 2 1 1 3 5 2 5 . . . . 5 5 5 . . . . 4 5 5 5 5 5 Low Security (%) 23 | 100 100 100 . 26 . . . 88 43 . . . . 73 35 . . . . . . . 31 . . . . . . 6 . . . . . Level 1 9 | . . . . 6 . . 4 10 40 . . . 100 26 18 . . 4 . . . . 6 . . . . . . 12 . . . . . Level 2 14 | . . . . 37 . . 13 . 14 18 . 100 . . 42 30 100 20 . . . . 16 . . . . . . 47 . . . . . Level 3 13 | . . . . 28 25 84 71 . 1 32 57 . . . 3 15 . 21 . . . . 4 . . . . . . 22 26 . . . . Level 4 10 | . . . . 1 27 15 10 . . 34 42 . . . . 21 . 35 . . . . 8 3 . . . . . 11 21 . . 1 . Level 5 16 | . . . . . 46 . . . . 14 . . . . . 32 . 8 . . . . 2 96 33 . . . . . . 1 100 97 4 High Security 12 | . . . . . . . . . . . . . . . . . . 9 . . . . 30 . 66 . . . . . 51 98 . 1 95 Max Security . | . . . . . . . . . . . . . . . . . . . . . . . . . . . . . . . . . . . . Sterilizations 3 | . . . . 1 . . . . . . . . . . . . . . . . . . 1 . . . . . . . 1 . . . . Peak Influence 11208 | 10 95 81 . 1163 2001 1185 1120 410 820 1624 1272 620 369 236 1024 1947 673 2931 . . . . 2166 3274 4641 . . . . 1564 4641 4493 2812 8523 11208 Initial 5113 | . . 24 . 11 754 975 495 410 327 469 852 597 331 97 54 501 673 438 . . . . . 1516 1718 . . . . 7 875 2610 2526 1545 5113 Average 1416 | 1 26 16 . 524 1455 1060 935 93 235 1117 1047 499 290 180 344 1190 633 1150 . . . . 955 2733 2848 . . . . 663 2451 3347 2645 4388 7642 Influence Increases 51586 | 10 420 201 180 1830 1257 360 1242 624 1623 1165 941 425 199 219 1649 1782 54 3255 552 40 . 300 2715 1798 3303 477 209 885 271 2214 4472 1953 615 7886 6460 Destroy 0b10 Robot/C 29840 | . 260 160 180 1060 580 280 660 220 860 580 560 240 160 140 740 920 40 1860 460 20 . 200 1740 980 1520 380 180 780 200 1280 2840 1300 480 4540 3440 Destroy 0b10 Robot/NC 1840 | 10 35 5 . 115 . 15 90 20 60 35 25 35 10 45 140 70 . 170 . . . 5 210 35 145 . . 15 15 25 135 30 25 155 165 Destroy Leader 4560 | . 68 20 . 262 30 64 214 10 202 40 124 20 . . 226 150 . 324 30 10 . 40 390 40 286 40 10 . 20 232 350 260 52 558 488 Allied During Kill 1117 | . . . . . . . 56 . . . 27 88 24 . . . . 5 32 10 . 25 . 190 22 42 19 . 6 25 287 32 4 37 186 Successful Hack 252 | . 4 . . 28 14 . 14 17 14 . 37 . . . . 7 . . . . . . 62 . 17 . . . . 14 . . . 24 . Select Force Hacks 180 | . 30 . . 60 . . . 90 . . . . . . . . . . . . . . . . . . . . . . . . . . . Disable Machine 2805 | . . 15 . 120 75 . 105 . 180 30 45 15 . 30 240 270 . 90 . . . . 135 60 390 . . . . 75 330 30 30 405 135 Anti-Garrison Action 2000 | . . . . . 450 . . . . 350 . . . . . . . . . . . . . 300 150 . . . . 300 . 150 . 150 150 Destroy Structure 6514 | . 8 1 . 95 108 1 58 5 62 70 33 27 5 4 243 260 14 250 . . . . 118 193 514 . . . . 248 470 30 24 1942 1731 Advance Influence 200 | . . . . . . . . . 200 . . . . . . . . . . . . . . . . . . . . . . . . . . Partial Spotted 45 | . . . . . . . . . . 15 15 . . . . . . . . . . . . . . . . . . . . . . . 15 Lose Combat Pursuer 1395 | . 15 . . 90 . . 45 . 45 45 75 . . . 60 105 . 210 30 . . 30 60 . 135 15 . 90 30 15 60 15 . 75 150 Miscellaneous 838 | . . . . . . . . 262 . . . . . . . . . 346 . . . . . . 124 . . . . . . 106 . . . Influence Decreases 40423 | 10 357 264 158 691 417 1186 1364 1373 1257 211 1344 1054 547 307 781 883 1350 951 1750 788 985 300 549 690 1936 2310 1269 2021 871 670 1387 2101 2359 2112 3820 Entered New Map 25569 | . . 39 . 11 407 1026 680 643 177 201 772 624 261 147 102 523 1250 189 1086 330 985 . . 650 1556 1718 534 1748 612 5 681 2031 1967 1204 3410 Time Decay 12204 | 10 357 225 136 610 . 160 464 437 770 . 542 410 206 160 524 350 100 722 644 458 . 280 519 . 170 592 695 203 259 625 486 10 362 698 20 Lost Part 697 | . . . 22 70 10 . 30 10 10 10 10 . . . 5 10 . . . . . . 30 . 20 . . 10 . . 40 . 10 130 270 Lost Ally 920 | . . . . . . . 40 . . . 20 20 80 . . . . 40 20 . . 20 . 40 40 . 40 60 . 40 180 60 20 80 120 Purge Threat 1033 | . . . . . . . 150 283 300 . . . . . 150 . . . . . . . . . 150 . . . . . . . . . . Squads Dispatched 284 | . 2 1 . 12 . 2 9 1 13 . 11 . . . 15 6 . 31 . . . . 15 . 27 . . . . 6 34 1 13 36 49 Investigation 22 | . 1 1 . 4 . 1 . 1 2 . 2 . . . 2 1 . . . . . . 2 . . . . . . 4 1 . . . . Extermination 36 | . . . . . . . . . 9 . 4 . . . 3 2 . 5 . . . . 2 . 1 . . . . 1 3 . 2 4 . Reinforcement 46 | . 1 . . 4 . 1 6 . . . 1 . . . 6 1 . 10 . . . . 6 . 2 . . . . 1 2 1 1 . 3 Assault 166 | . . . . 3 . . 1 . 2 . 1 . . . . 2 . 16 . . . . 4 . 24 . . . . . 25 . 10 32 46 Garrison 14 | . . . . 1 . . 2 . . . 3 . . . 4 . . . . . . . 1 . . . . . . . 3 . . . . Intercept . | . . . . . . . . . . . . . . . . . . . . . . . . . . . . . . . . . . . . Searches Triggered . | . . . . . . . . . . . . . . . . . . . . . . . . . . . . . . . . . . . . Construction Impeded 6 | . . . . . . . 1 . . . . . . . . 1 . 3 . . . . . . 1 . . . . . . . . . . Haulers Reinforced 4 | . . . . . . . . . . . . . . . 2 . . . . . . . . . 1 . . . . . . . . . 1 Active Scanning Responses . | . . . . . . . . . . . . . . . . . . . . . . . . . . . . . . . . . . . . Cargo Convoy Interrupts 2 | . . . . . . . . . 1 . . . . . . . . . . . . . 1 . . . . . . . . . . . . Stealth | -11 -10 -10 -10 -8 -8 -8 -8 -8 -6 -6 -6 -6 -6 -6 -6 -5 -5 -5 -5 -5 -5 -4 -4 -4 -4 -4 -4 -4 -3 -3 -3 -2 -2 -2 -1 --------- Run | Yrd Mat Min Sub Mat Gar Mat Sto Rec Fac Gar Fac Ext Cet Arc Hub Fac Was Fac Upp Upp Zhi Pro Fac Gar Fac Upp Upp War Pro Res Qua Res Tes Frg Acc Distress Signals 54 | . 2 . . 3 . 2 1 1 . . 1 2 1 . 4 1 . . . . . . 6 . 1 . . . 12 3 2 8 2 1 1 Communications Jammed . | . . . . . . . . . . . . . . . . . . . . . . . . . . . . . . . . . . . . Distress Signals . | . . . . . . . . . . . . . . . . . . . . . . . . . . . . . . . . . . . . Times Spotted 1971 | . 21 9 10 68 26 17 46 14 42 27 24 11 9 14 54 55 5 152 22 1 . 9 115 46 137 19 20 93 19 68 178 122 32 261 225 Peak Tracking Total 36 | . 4 4 4 7 5 5 6 3 5 6 3 3 5 3 6 11 2 11 9 1 . 4 10 9 36 5 5 14 4 8 33 13 6 24 35 Tactical Retreats 68 | . 1 . . 6 . . 3 . 3 1 5 . . . 3 3 . 9 1 . . 1 4 . 6 1 . 5 2 1 3 1 . 3 6 Traps | -11 -10 -10 -10 -8 -8 -8 -8 -8 -6 -6 -6 -6 -6 -6 -6 -5 -5 -5 -5 -5 -5 -4 -4 -4 -4 -4 -4 -4 -3 -3 -3 -2 -2 -2 -1 ------- Run | Yrd Mat Min Sub Mat Gar Mat Sto Rec Fac Gar Fac Ext Cet Arc Hub Fac Was Fac Upp Upp Zhi Pro Fac Gar Fac Upp Upp War Pro Res Qua Res Tes Frg Acc Traps Triggered 55 | . 2 . . 3 1 . . . . 5 4 4 . . 3 1 . 1 1 . . . 2 4 6 . . . 2 1 3 . . 12 . Indirectly . | . . . . . . . . . . . . . . . . . . . . . . . . . . . . . . . . . . . . Trap Hack Attempts . | . . . . . . . . . . . . . . . . . . . . . . . . . . . . . . . . . . . . Triggered . | . . . . . . . . . . . . . . . . . . . . . . . . . . . . . . . . . . . . Disarmed . | . . . . . . . . . . . . . . . . . . . . . . . . . . . . . . . . . . . . Reprogrammed . | . . . . . . . . . . . . . . . . . . . . . . . . . . . . . . . . . . . . Reused . | . . . . . . . . . . . . . . . . . . . . . . . . . . . . . . . . . . . . Traps Extracted . | . . . . . . . . . . . . . . . . . . . . . . . . . . . . . . . . . . . . Installed . | . . . . . . . . . . . . . . . . . . . . . . . . . . . . . . . . . . . . Triggered . | . . . . . . . . . . . . . . . . . . . . . . . . . . . . . . . . . . . . Machines | -11 -10 -10 -10 -8 -8 -8 -8 -8 -6 -6 -6 -6 -6 -6 -6 -5 -5 -5 -5 -5 -5 -4 -4 -4 -4 -4 -4 -4 -3 -3 -3 -2 -2 -2 -1 ---------- Run | Yrd Mat Min Sub Mat Gar Mat Sto Rec Fac Gar Fac Ext Cet Arc Hub Fac Was Fac Upp Upp Zhi Pro Fac Gar Fac Upp Upp War Pro Res Qua Res Tes Frg Acc Machines Disabled 260 | . . 1 . 8 11 . 7 . 12 7 3 1 . 2 16 18 . 6 2 . . 1 13 9 32 1 . 2 2 7 27 3 2 57 10 Max in Single Turn 9 | . . 1 . 2 1 . 2 . 9 1 2 1 . 1 6 6 . 2 1 . . 1 5 1 5 1 . 1 1 1 2 1 1 2 2 Garrison Access 13 | . . . . . . . 1 . 1 . . . . . . . . 1 . . . . 1 . 1 . . . . 3 . 3 . 1 1 Garrison Relay 14 | . . . . . 6 . . . . 4 . . . . . . . . . . . . . 4 . . . . . . . . . . . Network Hub 2 | . . . . . . . . . . . . . . . 2 . . . . . . . . . . . . . . . . . . . . Energy Cycler 4 | . . . . . . . . . . . . 3 . . . . . . . . . . . . . . . . . . . . . . 1 Machines Repaired . | . . . . . . . . . . . . . . . . . . . . . . . . . . . . . . . . . . . . Machines Dismantled . | . . . . . . . . . . . . . . . . . . . . . . . . . . . . . . . . . . . . Machines Sabotaged . | . . . . . . . . . . . . . . . . . . . . . . . . . . . . . . . . . . . . Overloaded Fab Kills . | . . . . . . . . . . . . . . . . . . . . . . . . . . . . . . . . . . . . Hacking | -11 -10 -10 -10 -8 -8 -8 -8 -8 -6 -6 -6 -6 -6 -6 -6 -5 -5 -5 -5 -5 -5 -4 -4 -4 -4 -4 -4 -4 -3 -3 -3 -2 -2 -2 -1 --------- Run | Yrd Mat Min Sub Mat Gar Mat Sto Rec Fac Gar Fac Ext Cet Arc Hub Fac Was Fac Upp Upp Zhi Pro Fac Gar Fac Upp Upp War Pro Res Qua Res Tes Frg Acc Machines Accessed 104 | . 3 . 1 12 2 1 4 11 17 1 6 . . . 9 3 . 2 . 1 4 1 6 1 4 . . 3 . 7 2 . . 3 . Terminals 54 | . 2 . . 7 2 1 3 6 7 1 2 . . . 8 2 . . . . . 1 2 1 3 . . . . 1 2 . . 3 . Fabricators 3 | . . . . . . . . . 1 . 1 . . . . . . . . . . . 1 . . . . . . . . . . . . Repair Stations . | . . . . . . . . . . . . . . . . . . . . . . . . . . . . . . . . . . . . Recycling Units 17 | . 1 . . 2 . . . 4 4 . 1 . . . . 1 . . . . . . 1 . . . . . . 3 . . . . . Scanalyzers 6 | . . . . 2 . . . . 2 . 1 . . . . . . 1 . . . . . . . . . . . . . . . . . Garrison Access 14 | . . . . 1 . . 1 . 3 . 1 . . . 1 . . 1 . . . . 2 . 1 . . . . 3 . . . . . Total Hacks 286 | . 6 . 4 34 3 3 10 29 47 2 15 . . . 15 15 . 3 . 1 16 1 20 2 16 . . 8 . 24 8 . . 4 . Successful 149 | . 3 . 4 23 1 1 6 22 19 . 7 . . . 2 7 . 2 . 1 16 1 12 1 7 . . 8 . 3 1 . . 2 . Failed 136 | . 3 . . 11 2 2 4 7 28 2 8 . . . 13 8 . . . . . . 8 1 9 . . . . 21 7 . . 2 . Catastrophic 27 | . . . . 2 1 1 . . 1 . 2 . . . 5 2 . . . . . . . . 1 . . . . 6 5 . . 1 . Database Lockouts 1 | . . . . . . . . . . . . . . . . . . 1 . . . . . . . . . . . . . . . . . Manual 92 | . 3 . . 19 . 3 3 17 11 . 1 . . . 6 9 . . . . . . 4 . 10 . . . . . 6 . . . . Terminals 162 | . 4 . . 23 3 3 6 17 24 2 5 . . . 12 12 . . . . . 1 14 2 15 . . . . 7 8 . . 4 . Fabricators 5 | . . . . . . . . . 1 . 2 . . . . . . . . . . . 2 . . . . . . . . . . . . Repair Stations . | . . . . . . . . . . . . . . . . . . . . . . . . . . . . . . . . . . . . Recycling Units 34 | . 2 . . 4 . . . 10 6 . 2 . . . . 3 . . . . . . 2 . . . . . . 5 . . . . . Scanalyzers 16 | . . . . 5 . . . . 6 . 3 . . . . . . 2 . . . . . . . . . . . . . . . . . Garrison Access 38 | . . . . 2 . . 4 . 10 . 3 . . . 3 . . 1 . . . . 2 . 1 . . . . 12 . . . . . Terminal Hacks 81 | . 1 . 4 5 1 1 5 6 7 . 3 . . . 2 4 . . . 1 16 1 5 1 6 . . 8 . 1 1 . . 2 . Record 13 | . . . 4 . . . . . . . . . . . . . . . . . 4 1 . . 1 . . 3 . . . . . . . Part Schematic 4 | . . . . . . . . . . . . . . . . . . . . . 4 . . . . . . . . . . . . . . Robot Analysis 5 | . . . . 1 . . . . . . . . . . . . . . . . 4 . . . . . . . . . . . . . . Prototype ID Bank 13 | . . . . 1 . . . 1 . . . . . . . 1 . . . . 4 . 1 . . . . 4 . 1 . . . . . Open Door 5 | . . . . . . . 2 . . . . . . . . . . . . 1 . . . 1 . . . 1 . . . . . . . Level Access Points 1 | . . . . . . . . . . . 1 . . . . . . . . . . . . . . . . . . . . . . . . Branch Access Points 2 | . . . . . . . . . . . . . . . . 1 . . . . . . . . 1 . . . . . . . . . . Terminal Index 1 | . . . . 1 . . . . . . . . . . . . . . . . . . . . . . . . . . . . . . . Scanalyzer Index 1 | . . . . . . . . . . . . . . . . . . . . . . . 1 . . . . . . . . . . . . Alert Level 14 | . . . . 1 . 1 2 1 3 . . . . . 1 2 . . . . . . 1 . 1 . . . . . 1 . . . . Unreport Threat 7 | . . . . . . . 1 2 2 . . . . . 1 . . . . . . . . . 1 . . . . . . . . . . Locate Traps 4 | . 1 . . . . . . . . . 1 . . . . . . . . . . . 1 . . . . . . . . . . 1 . Zone Layout 7 | . . . . 1 . . . . 2 . 1 . . . . . . . . . . . 1 . 2 . . . . . . . . . . Garrison Registry 1 | . . . . . 1 . . . . . . . . . . . . . . . . . . . . . . . . . . . . . . Proto ID Catalog 1 | . . . . . . . . . . . . . . . . . . . . . . . . . . . . . . . . . . 1 . Release Object 2 | . . . . . . . . 2 . . . . . . . . . . . . . . . . . . . . . . . . . . . Fabricator Hacks 3 | . . . . . . . . . 1 . . . . . . . . . . . . . 2 . . . . . . . . . . . . Network Status 1 | . . . . . . . . . 1 . . . . . . . . . . . . . . . . . . . . . . . . . . Load Schematic 1 | . . . . . . . . . . . . . . . . . . . . . . . 1 . . . . . . . . . . . . Build 1 | . . . . . . . . . . . . . . . . . . . . . . . 1 . . . . . . . . . . . . Repair Station Hacks . | . . . . . . . . . . . . . . . . . . . . . . . . . . . . . . . . . . . . Recycling Unit Hacks 13 | . . . . 2 . . . 3 4 . 1 . . . . 1 . . . . . . 1 . . . . . . 1 . . . . . Retrieve Components 13 | . . . . 2 . . . 3 4 . 1 . . . . 1 . . . . . . 1 . . . . . . 1 . . . . . Scanalyzer 11 | . . . . 5 . . . . 2 . 3 . . . . . . 1 . . . . . . . . . . . . . . . . . Retrieve Study 11 | . . . . 5 . . . . 2 . 3 . . . . . . 1 . . . . . . . . . . . . . . . . . Garrison Access Hacks 9 | . . . . 1 . . 1 . 2 . . . . . . . . 1 . . . . 2 . 1 . . . . 1 . . . . . Unlock Access 5 | . . . . 1 . . . . 1 . . . . . . . . . . . . . 2 . 1 . . . . . . . . . . Seal Access 4 | . . . . . . . 1 . 1 . . . . . . . . 1 . . . . . . . . . . . 1 . . . . . Unauthorized Hacks 32 | . 2 . . 10 . . . 13 3 . . . . . . 2 . . . . . . 2 . . . . . . . . . . . . Terminals 24 | . 1 . . 8 . . . 8 3 . . . . . . 2 . . . . . . 2 . . . . . . . . . . . . Botnet 6 | . . . . 2 . . . 2 . . . . . . . 1 . . . . . . 1 . . . . . . . . . . . . Operators 1 | . . . . 1 . . . . . . . . . . . . . . . . . . . . . . . . . . . . . . . Skim 17 | . 1 . . 5 . . . 6 3 . . . . . . 1 . . . . . . 1 . . . . . . . . . . . . Fabricators . | . . . . . . . . . . . . . . . . . . . . . . . . . . . . . . . . . . . . Repair Stations . | . . . . . . . . . . . . . . . . . . . . . . . . . . . . . . . . . . . . Recycling Units 8 | . 1 . . 2 . . . 5 . . . . . . . . . . . . . . . . . . . . . . . . . . . Reject 1 | . . . . . . . . 1 . . . . . . . . . . . . . . . . . . . . . . . . . . . Mask 1 | . . . . . . . . 1 . . . . . . . . . . . . . . . . . . . . . . . . . . . Tunnel 6 | . 1 . . 2 . . . 3 . . . . . . . . . . . . . . . . . . . . . . . . . . . Scanalyzers . | . . . . . . . . . . . . . . . . . . . . . . . . . . . . . . . . . . . . Garrison Access . | . . . . . . . . . . . . . . . . . . . . . . . . . . . . . . . . . . . . Data Cores Recovered 5 | . 1 . . . . . 1 . . . . . . . . . . 1 . . . . 1 . 1 . . . . . . . . . . Used . | . . . . . . . . . . . . . . . . . . . . . . . . . . . . . . . . . . . . Hacking Detections 73 | . 2 . . 8 1 1 3 9 14 1 6 . . . 9 2 . . . . . . 3 . 3 . . . . 7 2 . . 2 . Full Trace Events 15 | . 1 . . 1 1 1 . 1 2 1 1 . . . 2 . . . . . . . 1 . . . . . . 2 1 . . . . Feedback Events . | . . . . . . . . . . . . . . . . . . . . . . . . . . . . . . . . . . . . Feedback Blocked . | . . . . . . . . . . . . . . . . . . . . . . . . . . . . . . . . . . . . Robot Schematics Acquired 2 | . . . . . . . . . . . . . . . . . . . . . . . . . . . . . . . 1 . . 1 . Robots Built . | . . . . . . . . . . . . . . . . . . . . . . . . . . . . . . . . . . . . Authchips . | . . . . . . . . . . . . . . . . . . . . . . . . . . . . . . . . . . . . Time . | . . . . . . . . . . . . . . . . . . . . . . . . . . . . . . . . . . . . Total Robot Build Rating . | . . . . . . . . . . . . . . . . . . . . . . . . . . . . . . . . . . . . Part Schematics Acquired 12 | . . . . . . . . . . . . . . . . . . . . . 4 . . . . . . . . . 6 . . 2 . Parts Built 1 | . . . . . . . . . . . . . . . . . . . . . . . 1 . . . . . . . . . . . . Authchips . | . . . . . . . . . . . . . . . . . . . . . . . . . . . . . . . . . . . . Time 84 | . . . . . . . . . . . . . . . . . . . . . . . 84 . . . . . . . . . . . . Total Part Build Rating 6 | . . . . . . . . . . . . . . . . . . . . . . . 6 . . . . . . . . . . . . Part Studies Acquired 11 | . . . . 5 . . . . 2 . 3 . . . . . . 1 . . . . . . . . . . . . . . . . . Parts Repaired . | . . . . . . . . . . . . . . . . . . . . . . . . . . . . . . . . . . . . Time . | . . . . . . . . . . . . . . . . . . . . . . . . . . . . . . . . . . . . Parts Recycled . | . . . . . . . . . . . . . . . . . . . . . . . . . . . . . . . . . . . . Recycled Matter . | . . . . . . . . . . . . . . . . . . . . . . . . . . . . . . . . . . . . Retrieved Matter . | . . . . . . . . . . . . . . . . . . . . . . . . . . . . . . . . . . . . Retrieved Components 61 | . . . . 19 . . . 6 13 . 2 . . . . 1 . . . . . . 10 . . . . . . 10 . . . . . Parts Scanalyzed . | . . . . . . . . . . . . . . . . . . . . . . . . . . . . . . . . . . . . Part Schematics Acquired . | . . . . . . . . . . . . . . . . . . . . . . . . . . . . . . . . . . . . Parts Damaged . | . . . . . . . . . . . . . . . . . . . . . . . . . . . . . . . . . . . . Bothacking | -11 -10 -10 -10 -8 -8 -8 -8 -8 -6 -6 -6 -6 -6 -6 -6 -5 -5 -5 -5 -5 -5 -4 -4 -4 -4 -4 -4 -4 -3 -3 -3 -2 -2 -2 -1 ------------ Run | Yrd Mat Min Sub Mat Gar Mat Sto Rec Fac Gar Fac Ext Cet Arc Hub Fac Was Fac Upp Upp Zhi Pro Fac Gar Fac Upp Upp War Pro Res Qua Res Tes Frg Acc Used RIF Installer . | . . . . . . . . . . . . . . . . . . . . . . . . . . . . . . . . . . . . Robots Hacked . | . . . . . . . . . . . . . . . . . . . . . . . . . . . . . . . . . . . . Non-combat . | . . . . . . . . . . . . . . . . . . . . . . . . . . . . . . . . . . . . Combat . | . . . . . . . . . . . . . . . . . . . . . . . . . . . . . . . . . . . . Robot Hacks Applied . | . . . . . . . . . . . . . . . . . . . . . . . . . . . . . . . . . . . . Relay Couplers Released 75 | . . . . . 27 . . . . 17 . . . . . . . . . . . . 3 17 1 . . . . 2 . 4 . 2 2 Machine Destruction 75 | . . . . . 27 . . . . 17 . . . . . . . . . . . . 3 17 1 . . . . 2 . 4 . 2 2 Fabnet Peak Effective % . | . . . . . . . . . . . . . . . . . . . . . . . . . . . . . . . . . . . . Robots Rewired 15 | . . . . . . . . . . . . 5 . . . . . . 5 . . . . . . 2 . . 2 . . . 1 . . Allies Hacked 5 | . . . . . . . . . . . . . . . . . . 2 . . . . . . . . . . . 1 2 . . . . Hacks Repelled . | . . . . . . . . . . . . . . . . . . . . . . . . . . . . . . . . . . . . Allies | -11 -10 -10 -10 -8 -8 -8 -8 -8 -6 -6 -6 -6 -6 -6 -6 -5 -5 -5 -5 -5 -5 -4 -4 -4 -4 -4 -4 -4 -3 -3 -3 -2 -2 -2 -1 -------- Run | Yrd Mat Min Sub Mat Gar Mat Sto Rec Fac Gar Fac Ext Cet Arc Hub Fac Was Fac Upp Upp Zhi Pro Fac Gar Fac Upp Upp War Pro Res Qua Res Tes Frg Acc Total Allies 55 | . . . . . . . 3 . . . 5 7 . . . . . 2 5 . . 1 . 5 2 2 . . 2 . 11 4 2 4 . Largest Group 6 | . . . . . . . 3 . . . 5 6 5 . . . . 2 5 4 3 3 . 3 2 2 2 . 2 2 5 4 1 2 . Highest-Rated Group 417 | . . . . . . . 45 . . . 205 180 149 . . . . 60 149 115 85 219 . 239 110 94 94 . 98 98 417 333 145 219 . Highest-Rated Ally 219 | . . . . . . . 15 . . . 41 39 39 . . . . 30 30 30 30 219 . 119 56 47 47 . 49 49 119 119 145 219 . Initial Warlord ECA Mod 24 | . . . . . . 12 12 12 10 10 18 18 18 18 18 17 17 17 17 17 17 16 16 16 24 24 24 24 23 23 23 22 22 22 21 Total Orders 15 | . . . . . . . . . . . 1 . . . . . . . . . . . . . . . . 1 . . . . . . 13 STAY 1 | . . . . . . . . . . . 1 . . . . . . . . . . . . . . . . . . . . . . . . EXPLORE 1 | . . . . . . . . . . . . . . . . . . . . . . . . . . . . 1 . . . . . . . RETURN 13 | . . . . . . . . . . . . . . . . . . . . . . . . . . . . . . . . . . . 13 Ally Attacks 391 | . . . . . . . 27 . . . 34 31 11 . . . . 7 12 . . 22 . 33 7 11 6 . . 21 54 17 2 23 73 Total Damage 14143 | . . . . . . . 539 . . . 1039 514 244 . . . . 186 86 . . 1270 . 1054 214 310 214 . . 1389 1826 646 45 1208 3359 Kills 69 | . . . . . . . 6 . . . 9 3 1 . . . . 1 3 . . 2 . 11 1 2 1 . . 4 6 . . 3 16 Allies Corrupted 5 | . . . . . . . . . . . . . . . . . . . . . . . . . . . . . . 1 1 . . . 3 Allies Melted . | . . . . . . . . . . . . . . . . . . . . . . . . . . . . . . . . . . . . X0-1V1 Amusement Gains 867 | . 23 20 . 114 . . 20 10 15 . 10 30 . . 35 50 . 30 . . . . 98 . . . . 87 . 79 57 58 36 44 51 Average Entertainment 52 | . 20 10 17 16 100 100 60 34 15 19 21 43 18 9 8 41 70 78 42 18 . 5 57 100 100 63 27 43 42 63 80 99 84 94 97 Good Acts 333 | . 1 4 1 8 6 1 3 9 18 9 18 11 2 3 12 8 . 14 8 6 . 6 19 19 15 17 19 2 . 18 17 9 2 34 14 Bad Acts 209 | . 1 8 8 13 . 2 3 17 13 . 3 . . 1 2 8 2 21 6 4 . 14 11 4 7 2 7 6 8 8 10 3 1 13 3 Intel | -11 -10 -10 -10 -8 -8 -8 -8 -8 -6 -6 -6 -6 -6 -6 -6 -5 -5 -5 -5 -5 -5 -4 -4 -4 -4 -4 -4 -4 -3 -3 -3 -2 -2 -2 -1 ------- Run | Yrd Mat Min Sub Mat Gar Mat Sto Rec Fac Gar Fac Ext Cet Arc Hub Fac Was Fac Upp Upp Zhi Pro Fac Gar Fac Upp Upp War Pro Res Qua Res Tes Frg Acc Active Infowar (turns) 26560 | 9 1102 . . 3 . . . . 1085 . . . . . . . . 3 . . . . 3200 1782 1024 1865 2878 1696 956 2763 2580 1239 824 2581 970 Optics 22520 | . . . . . . . . . . . . . . . . . . . . . . . 3200 1782 1024 1865 2878 1696 956 2763 2580 1239 824 1713 . Sensors 1492 | . . . . 2 . . . . . . . . . . . . . . . . . . . . . 1245 243 . . 2 . . . . . Seismic 1113 | 9 1102 . . . . . . . . . . . . . . . . . . . . . . . . . 2 . . . . . . . . Decoding 1085 | . . . . . . . . . 1085 . . . . . . . . . . . . . . . . . . . . . . . . . . Cloaking 1849 | . . . . . . . . . . . . . . . . . . . . . . . . . . . . . . . . . . 879 970 Jamming 2 | . . . . 1 . . . . . . . . . . . . . . . . . . . . . . 1 . . . . . . . . ECM 3 | . . . . . . . . . . . . . . . . . . 3 . . . . . . . . . . . . . . . . . Robot Analysis Total 5 | . . . . 1 . . . . . . . . . . . . . . . . 4 . . . . . . . . . . . . . . Derelict Logs Recovered 15 | . . 2 2 . . . . . . . . . . . . . . . 3 2 . 1 . . . 3 2 . . . . . . . . Drone Launches 40 | . . . . . . . . . . . . . . . . . . . . . . . . . . . . 9 . . . . . . 31 Drone Recoveries 24 | . . . . . . . . . . . . . . . . . . . . . . . . . . . . . . . . . . . 24 Decoded 0b10 Intel 32 | . . . . . . . . . 32 . . . . . . . . . . . . . . . . . . . . . . . . . . Emergency Access 1 | . . . . . . . . . 1 . . . . . . . . . . . . . . . . . . . . . . . . . . Items 25 | . . . . . . . . . 25 . . . . . . . . . . . . . . . . . . . . . . . . . . Machines 6 | . . . . . . . . . 6 . . . . . . . . . . . . . . . . . . . . . . . . . . Exploration | -11 -10 -10 -10 -8 -8 -8 -8 -8 -6 -6 -6 -6 -6 -6 -6 -5 -5 -5 -5 -5 -5 -4 -4 -4 -4 -4 -4 -4 -3 -3 -3 -2 -2 -2 -1 ------------- Run | Yrd Mat Min Sub Mat Gar Mat Sto Rec Fac Gar Fac Ext Cet Arc Hub Fac Was Fac Upp Upp Zhi Pro Fac Gar Fac Upp Upp War Pro Res Qua Res Tes Frg Acc Turns Passed 59280 | 84 1447 921 1192 2459 1411 330 1160 4175 4787 1655 1545 983 433 330 1499 798 207 3774 2339 1157 193 1307 3200 1782 1024 1865 2894 1696 956 2763 2580 1239 824 2981 1290 Spaces Moved 30914 | 46 514 268 453 1208 614 132 457 1657 1998 499 896 659 165 111 824 683 129 1289 1014 874 143 919 1758 1022 1108 1113 1749 995 602 1781 1227 716 555 2044 692 Core 77 | 22 . . . . . . . . . . . . . . . . . . . . . . . . . . . . . . . . . . 55 Treads 8660 | 24 480 268 416 199 614 132 457 1014 269 481 22 8 . . 10 . . 95 . 46 . . 210 627 1108 272 617 266 17 . 473 535 . . . Legs 11760 | . . . . . . . . 546 1356 . . . . . 22 161 105 676 1014 31 . . 361 376 . 118 484 . 585 1781 727 181 555 2044 637 Wheels 1698 | . 34 . 37 1009 . . . 26 16 . . 28 . . 13 522 . . . . . . . . . 13 . . . . . . . . . Hover 4281 | . . . . . . . . . . 18 873 193 165 111 779 . 24 518 . 28 . . . . . 334 482 729 . . 27 . . . . Flight 4438 | . . . . . . . . 71 357 . 1 430 . . . . . . . 769 143 919 1187 19 . 376 166 . . . . . . . . Fastest Speed 48 | 50 145 240 155 120 200 200 200 160 89 115 97 117 117 171 67 67 114 114 206 125 125 125 125 52 52 52 48 115 115 115 122 107 107 65 50 Average Speed 143 | 119 189 240 233 142 200 200 200 204 198 258 114 117 153 171 122 83 132 163 206 127 125 125 142 148 52 152 94 115 115 122 144 141 114 91 126 Slowest Speed 405 | 160 320 240 320 200 200 200 200 405 385 259 117 189 171 171 171 137 137 242 206 217 125 125 182 194 52 260 135 115 115 178 174 147 147 132 172 Overloaded Moves . | . . . . . . . . . . . . . . . . . . . . . . . . . . . . . . . . . . . . Propulsion Burnouts . | . . . . . . . . . . . . . . . . . . . . . . . . . . . . . . . . . . . . Robots Hopped 10 | . . . . . . . . . . . . . . . . . . . . 2 . . 8 . . . . . . . . . . . . Potential Cave-ins 25 | . . . . . . . . . . . . . . . . . . 2 . . . . . . 3 . . 2 . . . . . 18 . Cave-ins Triggered 1 | . . . . . . . . . . . . . . . . . . . . . . . . . . . . . . . . . . 1 . Teleports 5 | . . . . . . . . . . . . . . . . . . . . . . . . . . . . . . . 3 . . 1 1 Exploration Rate (%) 63 | 3 88 60 23 91 68 12 64 99 50 69 30 82 59 76 84 31 85 22 98 98 60 99 50 85 36 96 98 97 77 51 99 31 58 49 24 Regions Visited 35 Branch Regions 19 Pre-discovered Areas 13 | . 1 . 1 2 . . . 3 . . . . . . . . . . 2 . 3 . . . . 1 . . . . . . . . . Known Exits Taken 17 | . . . . 1 . 1 . . 1 . 1 1 . . 1 . . 1 1 1 . 1 1 . 1 1 . . 1 1 1 1 . . . Unknown Exits Taken 13 | 1 1 1 1 . . . 1 1 . . . . 1 1 . . . . . . 1 . . . . . 1 1 . . . . 1 1 . Scrap Searched 20 | . . . . . . . . . . . . . . . . . . . 4 3 . 4 . . . 2 3 . 4 . . . . . . Spaces Dug 191 | . . . . . . . 3 3 16 4 5 5 . . 21 2 . 8 5 3 . . 15 10 8 5 6 . . 18 38 2 1 12 1 Terrain Destroyed 4139 | . 5 1 . 109 44 1 54 4 68 47 43 23 4 4 438 145 14 127 32 6 . 26 61 63 307 25 16 24 4 71 497 5 9 582 1280 Melee 1 | . . . . . . . . . 1 . . . . . . . . . . . . . . . . . . . . . . . . . . Projectile 1323 | . . . . . . 1 16 4 42 12 17 21 4 4 116 76 14 88 32 6 . 23 61 63 117 21 16 10 4 64 86 5 9 287 104 AOE 2815 | . 5 1 . 109 44 . 38 . 25 35 26 2 . . 322 69 . 39 . . . 3 . . 190 4 . 14 . 7 411 . . 295 1176 Terrain Rammed . | . . . . . . . . . . . . . . . . . . . . . . . . . . . . . . . . . . . . Walls Destroyed . | . . . . . . . . . . . . . . . . . . . . . . . . . . . . . . . . . . . . Machines Disabled . | . . . . . . . . . . . . . . . . . . . . . . . . . . . . . . . . . . . . Actions | -11 -10 -10 -10 -8 -8 -8 -8 -8 -6 -6 -6 -6 -6 -6 -6 -5 -5 -5 -5 -5 -5 -4 -4 -4 -4 -4 -4 -4 -3 -3 -3 -2 -2 -2 -1 --------- Run | Yrd Mat Min Sub Mat Gar Mat Sto Rec Fac Gar Fac Ext Cet Arc Hub Fac Was Fac Upp Upp Zhi Pro Fac Gar Fac Upp Upp War Pro Res Qua Res Tes Frg Acc Total 42889 | 65 880 512 553 1719 715 173 591 2405 2712 800 1358 829 327 224 1191 827 151 2694 1221 909 158 1047 2290 1221 1450 1256 2973 1406 826 2237 1789 849 688 2883 960 Wait 7003 | 1 276 222 76 211 19 4 29 625 501 222 359 36 119 70 167 37 10 1107 85 27 5 84 223 76 101 49 1153 226 168 241 199 15 25 205 30 Move 30855 | 45 513 267 452 1207 613 131 456 1656 1997 498 895 658 164 110 823 683 128 1288 1013 869 142 918 1741 1018 1107 1112 1748 994 601 1780 1226 715 554 2041 692 Hop 10 | . . . . . . . . . . . . . . . . . . . . 2 . . 8 . . . . . . . . . . . . Pick Up 343 | 8 14 . . 49 4 . 6 15 37 5 14 5 7 1 10 7 . 7 4 3 2 5 25 7 8 8 6 10 . 11 17 5 . 33 10 Fast Attach 184 | 5 6 1 1 22 1 1 1 6 4 1 2 3 3 1 9 3 . 5 2 . 4 . 9 2 3 1 6 4 1 18 11 1 4 35 8 Attach 136 | 2 4 1 5 14 2 . 8 7 4 1 2 1 1 2 1 2 . 3 . . . 2 8 . 1 2 1 4 . 5 10 3 5 16 19 Detach 69 | . 1 . 1 6 . . 3 7 2 . . 1 1 2 3 . . 2 . . . 1 5 . . . . 1 . 3 3 1 5 10 11 Swap 219 | . 7 1 2 50 6 3 4 4 5 . 2 1 2 . 5 1 . 9 1 . . . 13 3 4 1 6 7 1 18 18 8 1 31 5 Drop 424 | . 6 1 . 52 5 3 7 36 36 3 20 5 9 7 20 7 . 6 3 3 5 4 30 10 9 6 15 10 2 28 15 6 4 41 10 Fire 3270 | 4 51 19 16 108 61 31 68 49 118 64 64 40 21 31 122 85 13 243 44 5 . 33 213 105 211 49 38 140 39 129 286 95 68 459 148 Melee 6 | . . . . . . . . . 6 . . . . . . . . . . . . . . . . . . . . . . . . . . Ram 6 | . . . . . . . . . . . . . . . . . . . . . . . . . . . . . . . . . . . 6 Kick 35 | . . . . . . . . . 2 . . . . . . 2 . 11 . . . . . . . . . . . 4 . . . 8 8 Crush 14 | . 2 . . . . . 1 . . . . . . . 5 . . . . . . . . . 6 . . . . . . . . . . Escape Stasis 139 | . . . . . 2 . . . . 6 . 56 . . 26 . . 13 . . . . 15 . . . . . . . 4 . . 4 13 Rewire 174 | . . . . . 2 . 8 . . . . 23 . . . . . . 69 . . . . . . 28 . 8 14 . . . 22 . . Trap . | . . . . . . . . . . . . . . . . . . . . . . . . . . . . . . . . . . . . Miscellaneous 2 | . . . . . . . . . . . . . . . . . . . . . . . . . . . . 2 . . . . . . . Route ------- -11/Scrapyard -10/Materials (discovered 4 exits: [*Mat x2] / [*Min] / *Sub) -10/Mines -10/Subcaves -8/Materials (discovered 6 exits: *Fac x3 / *Sto x2 / Gar) -8/Garrison (discovered 3 exits: *Mat x3) -8/Materials (discovered 2 exits: *Sto x2) -8/Storage (discovered 2 exits: *Fac / *Rec) -8/Recycling -6/Factory (discovered 9 exits: *Fac x4 / *Low x2 / *Ext x2 / Gar) -6/Garrison (discovered 3 exits: *Fac x3) -6/Factory (discovered 7 exits: *Fac x4 / *Low x2 / *Ext) -6/Extension (discovered 3 exits: *Fac x2 / *Cet) -6/Cetus (discovered 2 exits: *Fac / [*Arc]) -6/Archives (discovered 2 exits: *Fac / *Hub) -6/Hub_04(d) (discovered 3 exits: *Fac x3) -5/Factory (discovered 3 exits: *Fac / Upp x2) -5/Waste -5/Factory (discovered 2 exits: Fac / *Upp) -5/Upper Caves -5/Upper Caves (discovered 2 exits: *Fac / *Zhi) -5/Zhirov -4/Proximity Caves -4/Factory (discovered 5 exits: Res x2 / *Upp / *Arm / Gar) -4/Garrison (discovered 3 exits: *Fac x3) -4/Factory (discovered 5 exits: Res / *Upp x2 / *Arm / Gar) -4/Upper Caves -4/Upper Caves (discovered 2 exits: *Res / *War) -4/Warlord -3/Proximity Caves -3/Research (discovered 5 exits: *Res x3 / *Qua x2) -3/Quarantine -2/Research (discovered 2 exits: [*Acc] / *Tes) -2/Testing (discovered 2 exits: [*Sec] / *Frg) -2/Protoforge -1/Access (discovered 1 exit: Com) History --------- Turn | Location | Event 5 | -11/Scrapyard | Discovered new exit (range 15) 85 | -11/Scrapyard | Entered Materials 257 | -10/Materials | Discovered new exit (range 9) 311 | -10/Materials | Build established: Mutant 504 | -10/Materials | Discovered new exit (range 7) 670 | -10/Materials | Discovered new exit (range 11) 1117 | -10/Materials | Discovered new exit (range 5) 1185 | -10/Materials | Derelicts attacked the area 1228 | -10/Materials | Lost 3 parts (1p1n1u) 1271 | -10/Materials | Prayed at D.C.S.S. Altar Unit 1274 | -10/Materials | Weapon slot count permanently improved by X0-1V1 (+1) 1532 | -10/Materials | Entered Mines 1621 | -10/Mines | Core integrity fell below 50% 1684 | -10/Mines | Build established: Gunner 1798 | -10/Mines | X0-1V1 sent hostile S-10 Pest (x4) 1895 | -10/Mines | X0-1V1 vaporized surrounding terrain (radius 21) 1902 | -10/Mines | System corruption reached 10% 2034 | -10/Mines | Learned Materials emergency access door positions 2178 | -10/Mines | Excavation squad dispatched 2178 | -10/Mines | A large section of the Mines collapsed 2229 | -10/Mines | X0-1V1 sent someone to clean up after you 2234 | -10/Mines | Melee accuracy permanently improved by X0-1V1 (+8%; -80 max core) 2372 | -10/Mines | X0-1V1 caused items to flee you 2438 | -10/Mines | Discovered new exit (range 5) 2453 | -10/Mines | Entered Subcaves 2454 | -10/Subcaves | Approached by a straggling Scientist 2648 | -10/Subcaves | X0-1V1 caused items to flee you 2881 | -10/Subcaves | X0-1V1 sent hostile S-10 Pest (x4) 3037 | -10/Subcaves | Items stopped fleeing you 3142 | -10/Subcaves | Visited Clippyterm 3149 | -10/Subcaves | Learned location of Deep Caves (-7) 3149 | -10/Subcaves | Learned Research machine intel 3166 | -10/Subcaves | X0-1V1 sent hostile G-34 Mercenary (x4) 3183 | -10/Subcaves | Build established: Scavenger-Tank 3622 | -10/Subcaves | Discovered new exit (range 13) 3623 | -10/Subcaves | Learned location of 1 exit from Materials 3645 | -10/Subcaves | Entered Materials 3645 | -8/Materials | Evolved 4 slots: Propulsion x1, Utility x3 3646 | -8/Materials | Identified exit to Storage 3647 | -8/Materials | Identified exit to Factory 4130 | -8/Materials | Build established: Tank 4378 | -8/Materials | Destroyed 7 combat bots 4535 | -8/Materials | X0-1V1 sent you into danger 4619 | -8/Materials | Discovered exit to Factory (range 15) 4645 | -8/Materials | X0-1V1 sent you into danger 4656 | -8/Materials | X0-1V1 vaporized surrounding terrain (radius 18) 4792 | -8/Materials | Learned Factory security intel 4828 | -8/Materials | Learned Storage non-interactive machine intel 4888 | -8/Materials | Learned Storage trap positions 4934 | -8/Materials | Learned Factory trap positions 4967 | -8/Materials | X0-1V1 vaporized surrounding terrain (radius 21) 5129 | -8/Materials | X0-1V1 vaporized surrounding terrain (radius 21) 5214 | -8/Materials | Identified exit to Garrison 5320 | -8/Materials | TH resistance permanently improved by X0-1V1 (+15%; -150 max core) 5618 | -8/Materials | Lost 3 parts (2n1w) 5624 | -8/Materials | X0-1V1 activates XOMVISION 5645 | -8/Materials | First assault squad dispatched 5817 | -8/Materials | X0-1V1 sent you to a vault 6049 | -8/Materials | Garrison activated, responded to threat 6069 | -8/Materials | Sterilization system engaged 6069 | -8/Materials | Non-combat units ordered to evacuate 6086 | -8/Materials | Destroyed 8 combat bots 6104 | -8/Materials | Entered Garrison 6130 | -8/Garrison | Triggered checkpoint 6170 | -8/Garrison | Garrison Relay disabled 6184 | -8/Garrison | Triggered checkpoint 6353 | -8/Garrison | Discovered new exit (range 46) 6353 | -8/Garrison | Discovered new exit (range 66) 6353 | -8/Garrison | Discovered new exit (range 53) 6377 | -8/Garrison | Triggered checkpoint 6423 | -8/Garrison | Build established: Scavenger-Tank 6579 | -8/Garrison | Triggered checkpoint 6609 | -8/Garrison | Garrison Relay disabled 6629 | -8/Garrison | Garrison Relay disabled 6788 | -8/Garrison | Triggered checkpoint 6901 | -8/Garrison | Build established: Scavenger-Gunner 6916 | -8/Garrison | Triggered checkpoint 6951 | -8/Garrison | Garrison Relay disabled 7120 | -8/Garrison | Garrison Relay disabled 7392 | -8/Garrison | Triggered checkpoint 7457 | -8/Garrison | Garrison Relay disabled 7515 | -8/Garrison | Entered Materials 7527 | -8/Materials | Discovered exit to Storage (range 16) 7845 | -8/Materials | Entered Storage 7846 | -8/Storage | Loaded intel: 23 trap records 7847 | -8/Storage | Loaded intel: 27 non-interactive machine locations 7901 | -8/Storage | X0-1V1 announced a LAN party 7927 | -8/Storage | X0-1V1 sent allied Y-45 Defender (x3) 7986 | -8/Storage | Garrison activated, responded to threat 8090 | -8/Storage | Found Prototype Launcher 8090 | -8/Storage | Identified Gui. EMP Blaster 8245 | -8/Storage | First assault squad dispatched 8321 | -8/Storage | Used back door to open Recycling access 8321 | -8/Storage | Discovered new exit (range 5) 8837 | -8/Storage | Discovered exit to Factory (range 20) 9005 | -8/Storage | Entered Recycling 9544 | -8/Recycling | Discovered new exit (range 13) 9615 | -8/Recycling | Learned Storage security intel 9659 | -8/Recycling | Learned location of 1 exit from Recycling 9725 | -8/Recycling | Learned Storage security intel 9728 | -8/Recycling | Learned 2 Lower Caves zone layouts 9729 | -8/Recycling | Learned Factory garrison access intel 9731 | -8/Recycling | Learned location of 1 exit from Storage 9762 | -8/Recycling | Learned location of 2 exits from Factory 10417 | -8/Recycling | Found Prototype Device 10417 | -8/Recycling | Identified Scrap Engine 10452 | -8/Recycling | Entered Scraplab 10457 | -8/Recycling | Build established: Scavenger-Mutant 10506 | -8/Recycling | X0-1V1 vaporized surrounding terrain (radius 24) 10521 | -8/Recycling | X0-1V1 sent hostile B-36 Bruiser (x3) 11105 | -8/Recycling | X0-1V1 vaporized surrounding terrain (radius 24) 11281 | -8/Recycling | Build established: Construct 11495 | -8/Recycling | X0-1V1 added 0b10 threat records associated with you (minor) 12390 | -8/Recycling | X0-1V1 sent hostile G-34 Mercenary (x3) 12399 | -8/Recycling | Core integrity fell below 50% 13136 | -8/Recycling | X0-1V1 added 0b10 threat records associated with you (minor) 13180 | -8/Recycling | Entered Factory 13180 | -6/Factory | Evolved 4 slots: Power x1, Propulsion x1, Utility x2 13181 | -6/Factory | Identified exit to Factory 13181 | -6/Factory | Identified exit to Lower Caves 13182 | -6/Factory | Identified exit to Extension 13183 | -6/Factory | Loaded intel: 79 trap records 13185 | -6/Factory | Loaded intel: 4 garrison access locations 13435 | -6/Factory | X0-1V1 foreshadows a heat wave 13733 | -6/Factory | Ambient heat levels rising (+10) 13868 | -6/Factory | X0-1V1 sent hostile S-27 Virus (x3) 13942 | -6/Factory | X0-1V1 sent you to a vault 14023 | -6/Factory | Ambient heat levels rising (+10) 14048 | -6/Factory | Cargo convoy interrupted 14386 | -6/Factory | Ambient heat levels falling (-10) 14465 | -6/Factory | X0-1V1 revealed exit location to -6/Extension 14812 | -6/Factory | Ambient heat levels falling (-10) 14958 | -6/Factory | Identified exit to Garrison 15835 | -6/Factory | X0-1V1 activates XOMVISION 16342 | -6/Factory | X0-1V1 put everyone to sleep 16813 | -6/Factory | System corruption reached 10% 17380 | -6/Factory | First assault squad dispatched 17516 | -6/Factory | X0-1V1 woke everyone up 17967 | -6/Factory | Entered Garrison 18035 | -6/Garrison | Triggered checkpoint 18072 | -6/Garrison | Garrison Relay disabled 18213 | -6/Garrison | X0-1V1 activates XOMVISION 18217 | -6/Garrison | Triggered checkpoint 18336 | -6/Garrison | Discovered new exit (range 13) 18409 | -6/Garrison | Triggered checkpoint 18437 | -6/Garrison | Garrison Relay disabled 18477 | -6/Garrison | Identified exit to Factory 18477 | -6/Garrison | X0-1V1 revealed exit location to -6/Factory 18654 | -6/Garrison | Triggered checkpoint 18807 | -6/Garrison | Triggered checkpoint 18846 | -6/Garrison | Garrison Relay disabled 18924 | -6/Garrison | Discovered exit to Factory (range 10) 19145 | -6/Garrison | Triggered checkpoint 19237 | -6/Garrison | Triggered checkpoint 19256 | -6/Garrison | Garrison Relay disabled 19622 | -6/Garrison | Entered Factory 19678 | -6/Factory | X0-1V1 revealed exit location to -5/Factory 19867 | -6/Factory | X0-1V1 sent you to a vault 19903 | -6/Factory | X0-1V1 revealed exit location to -6/Extension 19972 | -6/Factory | First assault squad dispatched 20111 | -6/Factory | X0-1V1 revealed exit location to -5/Factory 20280 | -6/Factory | Core integrity restored by X0-1V1 (+159) 20428 | -6/Factory | Garrison activated, responded to threat 20726 | -6/Factory | X0-1V1 mutated your Utility slot to Weapon slot 21102 | -6/Factory | X0-1V1 activates XOMVISION 21167 | -6/Factory | Entered Extension 21173 | -6/Extension | X0-1V1 dreamt of freedom 21174 | -6/Extension | Rescued a captive Derelict 21176 | -6/Extension | Rescued a captive Derelict 21185 | -6/Extension | Rescued a captive Derelict 21186 | -6/Extension | Rescued a captive Derelict 21186 | -6/Extension | Rescued a captive Derelict 21189 | -6/Extension | Rescued a captive Derelict 21191 | -6/Extension | Rescued a captive Derelict 21193 | -6/Extension | Rescued a captive Derelict 21194 | -6/Extension | Rescued a captive Derelict 21197 | -6/Extension | Rescued a captive Derelict 21197 | -6/Extension | Rescued a captive Derelict 21197 | -6/Extension | Rescued a captive Derelict 21614 | -6/Extension | X0-1V1 activates XOMVISION 21632 | -6/Extension | Identified exit to Cetus 21632 | -6/Extension | X0-1V1 revealed exit location to -6/Cetus 21657 | -6/Extension | Spotted B-75 Beast 21682 | -6/Extension | Destroyed B-75 Beast 21689 | -6/Extension | Spotted B-75 Beast 21694 | -6/Extension | Allies destroyed B-75 Beast 21733 | -6/Extension | Discovered exit to Factory (range 13) 21757 | -6/Extension | Extracted ID and sensor layout for unrecognized location from A7's data core 22085 | -6/Extension | Discovered exit to Factory (range 11) 22150 | -6/Extension | Entered Cetus 22150 | -6/Cetus | Accompanied by 5 allies 22167 | -6/Cetus | Spotted Cetus Guard 22168 | -6/Cetus | Spotted Cetus Guard 22175 | -6/Cetus | Spotted Cetus Guard 22176 | -6/Cetus | Destroyed Cetus Guard 22178 | -6/Cetus | Spotted Cetus Guard 22182 | -6/Cetus | Allies destroyed Cetus Guard 22190 | -6/Cetus | Destroyed Cetus Guard 22192 | -6/Cetus | Destroyed Cetus Guard 22219 | -6/Cetus | Lost 3 allies 22433 | -6/Cetus | Discovered new exit (range 16) 22468 | -6/Cetus | Spotted Cetus Guard 22469 | -6/Cetus | Spotted Cetus Guard 22474 | -6/Cetus | Spotted Cetus Guard 22475 | -6/Cetus | Destroyed Cetus Guard 22477 | -6/Cetus | Destroyed Cetus Guard 22481 | -6/Cetus | Destroyed Cetus Guard 22481 | -6/Cetus | Spotted Cetus Guard 22485 | -6/Cetus | Destroyed Cetus Guard 22501 | -6/Cetus | Discovered exit to Factory (range 15) 22510 | -6/Cetus | Met Revision 17 22583 | -6/Cetus | Entered Archives 22654 | -6/Archives | Discovered exit to Factory (range 16) 22665 | -6/Archives | X0-1V1 activates XOMVISION 22695 | -6/Archives | Discovered new exit (range 15) 22718 | -6/Archives | X0-1V1 sent hostile X-67 Chaingunner (x3) 22913 | -6/Archives | Entered Hub_04(d) 23384 | -6/Hub_04(d) | Garrison activated, responded to threat 23416 | -6/Hub_04(d) | Discovered exit to Factory (range 7) 23441 | -6/Hub_04(d) | Destroyed 7 combat bots 23469 | -6/Hub_04(d) | Found Prototype Processor 23469 | -6/Hub_04(d) | Identified Exp. Targeting Computer 23475 | -6/Hub_04(d) | Found Exp. Targeting Computer 23681 | -6/Hub_04(d) | Discovered exit to Factory (range 16) 23684 | -6/Hub_04(d) | Garrison activated, responded to threat 24057 | -6/Hub_04(d) | Discovered exit to Factory (range 7) 24297 | -6/Hub_04(d) | X0-1V1 sent you into danger 24382 | -6/Hub_04(d) | Network Hub disabled 24401 | -6/Hub_04(d) | Network Hub disabled 24410 | -6/Hub_04(d) | Spotted Lightning 24412 | -6/Hub_04(d) | Spotted Lightning 24412 | -6/Hub_04(d) | Spotted Lightning 24412 | -6/Hub_04(d) | Entered Factory 24412 | -5/Factory | Evolved 2 slots: Propulsion x1, Utility x1 24453 | -5/Factory | Spotted B-75 Beast 24476 | -5/Factory | Destroyed B-75 Beast 24562 | -5/Factory | Discovered new exit (range 15) 24629 | -5/Factory | X0-1V1 tapped a No Entrance sign 24654 | -5/Factory | X0-1V1 sent you into danger 24712 | -5/Factory | First assault squad dispatched 24716 | -5/Factory | X0-1V1 enhanced Transport squad support 24823 | -5/Factory | Destroyed 7 combat bots 24841 | -5/Factory | X0-1V1 redirected Transport squads to designated parking area 24894 | -5/Factory | Identified exit to Upper Caves 24989 | -5/Factory | Destroyed 14 combat bots 24999 | -5/Factory | X0-1V1 put everyone to sleep 25010 | -5/Factory | Discovered new exit (range 15) 25067 | -5/Factory | X0-1V1 activates XOMVISION 25210 | -5/Factory | Sucked down chute 25210 | -5/Factory | Entered Waste 25225 | -5/Waste | EMP discharged 25272 | -5/Waste | Spotted C-40 Crusher 25274 | -5/Waste | Destroyed C-40 Crusher 25278 | -5/Waste | Destroyed C-40 Crusher 25284 | -5/Waste | Spotted C-40 Crusher 25286 | -5/Waste | Destroyed C-40 Crusher 25300 | -5/Waste | Spotted C-40 Crusher 25303 | -5/Waste | Destroyed C-40 Crusher 25325 | -5/Waste | EMP discharged 25325 | -5/Waste | System corruption reached 10% 25340 | -5/Waste | Spotted C-40 Crusher 25344 | -5/Waste | Destroyed C-40 Crusher 25357 | -5/Waste | Spotted C-40 Crusher 25362 | -5/Waste | Destroyed C-40 Crusher 25382 | -5/Waste | Discovered new exit (range 13) 25392 | -5/Waste | X0-1V1 vaporized surrounding terrain (radius 15) 25408 | -5/Waste | X0-1V1 sent hostile Thug (x2) 25417 | -5/Waste | Entered Factory 25607 | -5/Factory | Central database locked down 25763 | -5/Factory | X0-1V1 caused items to flee you 25900 | -5/Factory | Items stopped fleeing you 26106 | -5/Factory | X0-1V1 sent you to a vault 26125 | -5/Factory | Found Prototype Device 26125 | -5/Factory | Identified Exp. ECM Suite 26133 | -5/Factory | Found Unknown Device 26133 | -5/Factory | Identified Heavy Servo Lattice 26177 | -5/Factory | Discovered exit to Upper Caves (range 11) 26630 | -5/Factory | X0-1V1 announced a LAN party 26735 | -5/Factory | X0-1V1 added 0b10 threat records associated with you (minor) 26917 | -5/Factory | First assault squad dispatched 27107 | -5/Factory | X0-1V1 activates XOMVISION 27298 | -5/Factory | X0-1V1 activates XOMVISION 27399 | -5/Factory | Destroyed 8 combat bots 27716 | -5/Factory | X0-1V1 vaporized surrounding terrain (radius 22) 28309 | -5/Factory | Identified exit to Factory 28309 | -5/Factory | X0-1V1 revealed exit location to -4/Factory 28353 | -5/Factory | Specialist reinforcements revealed to be Infiltrators 28419 | -5/Factory | X0-1V1 enhanced Transport squad support 28547 | -5/Factory | X0-1V1 added 0b10 threat records associated with you (major) 28644 | -5/Factory | X0-1V1 vaporized surrounding terrain (radius 22) 28850 | -5/Factory | High security lockdown imminent 28930 | -5/Factory | High security lockdown engaged 28935 | -5/Factory | X0-1V1 sent allied L-41 Fighter (x2) 29026 | -5/Factory | Destroyed 21 combat bots 29109 | -5/Factory | Destroyed 9 combat bots 29191 | -5/Factory | Entered Upper Caves 29257 | -5/Upper Caves | Attracted the attention of an 0b10 checkpoint 29308 | -5/Upper Caves | Met a Warlord Commander 29309 | -5/Upper Caves | Learned location of Warlord (-4) 29310 | -5/Upper Caves | Warlord Commander delivered Encrypted Comm Array 29404 | -5/Upper Caves | Encountered a Warlord checkpoint 29636 | -5/Upper Caves | X0-1V1 activates XOMVISION 29813 | -5/Upper Caves | System corruption reached 30% 29864 | -5/Upper Caves | Spotted B-75 Beast 29866 | -5/Upper Caves | Destroyed B-75 Beast 29934 | -5/Upper Caves | X0-1V1 caused items to flee you 29996 | -5/Upper Caves | X0-1V1 activates XOMVISION 30064 | -5/Upper Caves | Attracted the attention of an 0b10 outpost 30129 | -5/Upper Caves | Destroyed 8 combat bots 30164 | -5/Upper Caves | Items stopped fleeing you 30354 | -5/Upper Caves | X0-1V1 vaporized surrounding terrain (radius 18) 30356 | -5/Upper Caves | Attacked by a delusional Derelict stockpiling Unaware 30360 | -5/Upper Caves | X0-1V1 activates XOMVISION 30474 | -5/Upper Caves | Identified exit to Upper Caves 30474 | -5/Upper Caves | X0-1V1 revealed exit location to -5/Upper Caves 30480 | -5/Upper Caves | Learned 8 Factory zone layouts 30483 | -5/Upper Caves | Learned Factory emergency access door positions 30714 | -5/Upper Caves | Build established: Commander-Construct 31530 | -5/Upper Caves | Entered another Upper Caves area 31530 | -5/Upper Caves | Accompanied by 4 allies 31600 | -5/Upper Caves | Discovered exit to Factory (range 10) 32172 | -5/Upper Caves | X0-1V1 activates XOMVISION 32201 | -5/Upper Caves | Learned 4 Factory zone layouts 32288 | -5/Upper Caves | Identified exit to Zhirov 32288 | -5/Upper Caves | X0-1V1 revealed exit location to -5/Zhirov 32371 | -5/Upper Caves | X0-1V1 vaporized surrounding terrain (radius 17) 32413 | -5/Upper Caves | Learned 4 Factory zone layouts 32687 | -5/Upper Caves | Entered Zhirov 32687 | -5/Zhirov | Accompanied by 3 allies 32687 | -5/Zhirov | Discovered new exit (range 3) 32710 | -5/Zhirov | Met Zhirov 32732 | -5/Zhirov | Learned location of Quarantine (-3) 32745 | -5/Zhirov | Zhirov requested help retrieving the SGEMP Prototype 32764 | -5/Zhirov | Found Alien Artifact 32764 | -5/Zhirov | Identified Integrated Dissipator 32764 | -5/Zhirov | Installed Integrated Dissipator, increased core heat dissipation (+20) 32825 | -5/Zhirov | Found Alien Artifact 32880 | -5/Zhirov | Entered Proximity Caves 32880 | -4/Proximity Caves | Accompanied by 3 allies 32998 | -4/Proximity Caves | Build established: Construct 33084 | -4/Proximity Caves | X0-1V1 sent allied B-99 Colossus (x1) 33094 | -4/Proximity Caves | Lost 3 allies 33213 | -4/Proximity Caves | X0-1V1 revealed exit location to -4/Factory 33284 | -4/Proximity Caves | Spotted B-86 Titan 33317 | -4/Proximity Caves | Destroyed B-86 Titan 33359 | -4/Proximity Caves | X0-1V1 vaporized surrounding terrain (radius 23) 33498 | -4/Proximity Caves | X0-1V1 vaporized surrounding terrain (radius 23) 33619 | -4/Proximity Caves | Learned location of 1 exit from Research 33662 | -4/Proximity Caves | Attracted the attention of an 0b10 checkpoint 33696 | -4/Proximity Caves | X0-1V1 sent you into danger 33709 | -4/Proximity Caves | X0-1V1 vaporized surrounding terrain (radius 23) 33741 | -4/Proximity Caves | X0-1V1 rewrote B-99 Colossus IFF filter 33749 | -4/Proximity Caves | Spotted B-99 Colossus 33881 | -4/Proximity Caves | X0-1V1 caused items to flee you 34146 | -4/Proximity Caves | Items stopped fleeing you 34187 | -4/Proximity Caves | Entered Factory 34187 | -4/Factory | Evolved 2 slots: Utility x2 34235 | -4/Factory | Spotted B-86 Titan 34480 | -4/Factory | Destroyed B-86 Titan 34508 | -4/Factory | Identified exit to Garrison 34508 | -4/Factory | Watched by a mysterious "MATRIX" hacker 34598 | -4/Factory | Garrison activated, responded to threat 34955 | -4/Factory | Identified exit to Garrison 35024 | -4/Factory | X0-1V1 activates XOMVISION 35096 | -4/Factory | Cargo convoy interrupted 35096 | -4/Factory | Spotted Striker 35096 | -4/Factory | Spotted Executioner 35121 | -4/Factory | Destroyed Striker 35189 | -4/Factory | Destroyed Executioner 35238 | -4/Factory | Destroyed 7 combat bots 35501 | -4/Factory | Build established: Scavenger-Construct 35660 | -4/Factory | Identified exit to Research 35660 | -4/Factory | X0-1V1 revealed exit location to -3/Research 35882 | -4/Factory | Build established: Construct 35882 | -4/Factory | Discovered new exit (range 7) 35937 | -4/Factory | First assault squad dispatched 35971 | -4/Factory | Discovered new exit (range 15) 35989 | -4/Factory | X0-1V1 upgraded hostiles (x2) 36067 | -4/Factory | Destroyed 8 combat bots 36124 | -4/Factory | Spotted B-86 Titan 36125 | -4/Factory | Destroyed B-86 Titan 36310 | -4/Factory | Destroyed 7 combat bots 36370 | -4/Factory | X0-1V1 made a cryptic comment about sterilization and BL-4Z3 36417 | -4/Factory | High security lockdown imminent 36455 | -4/Factory | Sterilization system engaged 36455 | -4/Factory | Non-combat units ordered to evacuate 36484 | -4/Factory | Fabricated Exp. Heat Sink (x1) 36555 | -4/Factory | Combat units ordered to evacuate 36755 | -4/Factory | Ambient heat levels rising (+10) 36905 | -4/Factory | Ambient heat levels rising (+10) 37009 | -4/Factory | X0-1V1 revealed exit location to -3/Research 37055 | -4/Factory | Ambient heat levels rising (+10) 37160 | -4/Factory | Core integrity restored by X0-1V1 (+174) 37205 | -4/Factory | Ambient heat levels rising (+10) 37355 | -4/Factory | Ambient heat levels rising (+10) 37387 | -4/Factory | Entered Garrison 37453 | -4/Garrison | Triggered checkpoint 37483 | -4/Garrison | Garrison Relay disabled 37569 | -4/Garrison | X0-1V1 sent allied Executioner (x1) 37594 | -4/Garrison | Destroyed 9 combat bots 37652 | -4/Garrison | X0-1V1 sent allied Ranger (x2) 37681 | -4/Garrison | X0-1V1 caused items to flee you 37722 | -4/Garrison | X0-1V1 activates XOMVISION 37740 | -4/Garrison | Triggered checkpoint 37756 | -4/Garrison | Triggered checkpoint 37762 | -4/Garrison | Triggered checkpoint 37798 | -4/Garrison | Destroyed 10 combat bots 37854 | -4/Garrison | Discovered new exit (range 10) 37885 | -4/Garrison | Items stopped fleeing you 37900 | -4/Garrison | Found embedded Infiltrators 37905 | -4/Garrison | Triggered checkpoint 37934 | -4/Garrison | Garrison Relay disabled 38250 | -4/Garrison | Discovered new exit (range 11) 38289 | -4/Garrison | Triggered checkpoint 38302 | -4/Garrison | Garrison Relay disabled 38540 | -4/Garrison | Identified exit to Factory 38540 | -4/Garrison | X0-1V1 revealed exit location to -4/Factory 38573 | -4/Garrison | Triggered checkpoint 38683 | -4/Garrison | Triggered checkpoint 38722 | -4/Garrison | Found Quantum Capacitor 38762 | -4/Garrison | Garrison Relay disabled 38880 | -4/Garrison | X0-1V1 activates XOMVISION 39050 | -4/Garrison | System corruption reached 10% 39062 | -4/Garrison | Attempted to access garrison exit controls, blocked by remote lockdown 39129 | -4/Garrison | Attempted to access garrison exit controls, blocked by remote lockdown 39152 | -4/Garrison | Core integrity restored by X0-1V1 (+174) 39169 | -4/Garrison | Entered Factory 39174 | -4/Factory | Identified exit to Garrison 39178 | -4/Factory | X0-1V1 revealed exit location to -3/Research 39232 | -4/Factory | X0-1V1 added 0b10 threat records associated with you (minor) 39276 | -4/Factory | Identified exit to Upper Caves 39276 | -4/Factory | Identified exit to Armory 39484 | -4/Factory | Destroyed 7 combat bots 39516 | -4/Factory | High security lockdown imminent 39560 | -4/Factory | Destroyed B-86 Titan 39596 | -4/Factory | High security lockdown engaged 39732 | -4/Factory | Destroyed 10 combat bots 39776 | -4/Factory | X0-1V1 activates XOMVISION 39894 | -4/Factory | Destroyed 13 combat bots 39941 | -4/Factory | X0-1V1 vaporized surrounding terrain (radius 18) 39946 | -4/Factory | X0-1V1 announced a LAN party 40051 | -4/Factory | Spotted B-86 Titan 40056 | -4/Factory | Destroyed B-86 Titan 40102 | -4/Factory | X0-1V1 sent hostile G-67 Veteran (x5) 40157 | -4/Factory | X0-1V1 turns hostiles against one another 40185 | -4/Factory | Destroyed 20 combat bots 40193 | -4/Factory | Entered Upper Caves 40232 | -4/Upper Caves | Core integrity restored by X0-1V1 (+147) 40248 | -4/Upper Caves | Spotted B-86 Titan 40283 | -4/Upper Caves | Destroyed B-86 Titan 40346 | -4/Upper Caves | Identified exit to Upper Caves 40346 | -4/Upper Caves | X0-1V1 revealed exit location to -4/Upper Caves 40400 | -4/Upper Caves | Attracted the attention of an 0b10 outpost 40429 | -4/Upper Caves | Destroyed 7 combat bots 40717 | -4/Upper Caves | Encountered a Warlord checkpoint 41047 | -4/Upper Caves | X0-1V1 activates XOMVISION 41048 | -4/Upper Caves | Attracted the attention of an 0b10 checkpoint 41819 | -4/Upper Caves | Found DCF Scrap (15 items) 41840 | -4/Upper Caves | Learned Research terminal intel 42058 | -4/Upper Caves | Entered another Upper Caves area 42058 | -4/Upper Caves | Accompanied by 2 allies 42078 | -4/Upper Caves | Discovered exit to Research (range 16) 42090 | -4/Upper Caves | Encountered a Warlord checkpoint 42226 | -4/Upper Caves | X0-1V1 activates XOMVISION 42414 | -4/Upper Caves | Attacked by a faux Warlord 42484 | -4/Upper Caves | Learned Research stockpile data 42772 | -4/Upper Caves | X0-1V1 activates XOMVISION 42816 | -4/Upper Caves | Discovered new exit (range 22) 42899 | -4/Upper Caves | Attracted the attention of an 0b10 checkpoint 43002 | -4/Upper Caves | Ambushed by wild Derelicts 43200 | -4/Upper Caves | X0-1V1 activates XOMVISION 43417 | -4/Upper Caves | X0-1V1 activates XOMVISION 44696 | -4/Upper Caves | X0-1V1 caused items to flee you 44881 | -4/Upper Caves | Items stopped fleeing you 44952 | -4/Upper Caves | Entered Warlord 45060 | -4/Warlord | Found Prototype Device 45060 | -4/Warlord | Identified Exp. Focal Shield 45067 | -4/Warlord | Found Prototype Reactor 45078 | -4/Warlord | Found Prototype Hackware 45553 | -4/Warlord | Discovered new exit (range 97) 45560 | -4/Warlord | Met Warlord 45577 | -4/Warlord | Warlord's base attacked by MAIN.C 45640 | -4/Warlord | X0-1V1 vaporized surrounding terrain (radius 23) 45659 | -4/Warlord | Found Prototype Energy Cannon 45662 | -4/Warlord | Found Prototype Energy Cannon 45800 | -4/Warlord | Warlord forces counterattacked 45816 | -4/Warlord | Spotted B-90 Cyclops 45817 | -4/Warlord | Spotted B-86 Titan 45890 | -4/Warlord | Destroyed B-90 Cyclops 45936 | -4/Warlord | Spotted Executioner 45992 | -4/Warlord | Lost 23 allies 46055 | -4/Warlord | Spotted Executioner 46059 | -4/Warlord | Destroyed Executioner 46168 | -4/Warlord | Spotted Executioner 46171 | -4/Warlord | Destroyed Executioner 46183 | -4/Warlord | X0-1V1 vaporized surrounding terrain (radius 23) 46199 | -4/Warlord | Spotted Executioner 46210 | -4/Warlord | Spotted B-86 Titan 46210 | -4/Warlord | Spotted B-90 Cyclops 46227 | -4/Warlord | Destroyed Executioner 46252 | -4/Warlord | Warlord base infiltrated, sounded retreat 46287 | -4/Warlord | Destroyed B-86 Titan 46304 | -4/Warlord | Destroyed PL-I61(B) 46339 | -4/Warlord | Found Prototype Processor 46343 | -4/Warlord | Found Prototype Processor 46347 | -4/Warlord | Identified Exp. Core Analyzer (x2) 46417 | -4/Warlord | Spotted Striker 46421 | -4/Warlord | Spotted Striker 46433 | -4/Warlord | Destroyed Striker 46469 | -4/Warlord | Lost 4 allies 46477 | -4/Warlord | Spotted Executioner 46486 | -4/Warlord | Spotted B-86 Titan 46487 | -4/Warlord | Spotted B-90 Cyclops 46534 | -4/Warlord | Found Prototype Processor 46534 | -4/Warlord | Identified Exp. Melee Analysis Suite 46554 | -4/Warlord | Lost 15 allies 46574 | -4/Warlord | Found Exp. Core Analyzer 46616 | -4/Warlord | Destroyed B-90 Cyclops 46631 | -4/Warlord | Spotted Executioner 46648 | -4/Warlord | Entered Proximity Caves 47200 | -3/Proximity Caves | X0-1V1 upgraded hostiles (x2) 47291 | -3/Proximity Caves | Discovered exit to Research (range 8) 47291 | -3/Proximity Caves | X0-1V1 sent you into danger 47473 | -3/Proximity Caves | Spotted B-86 Titan 47496 | -3/Proximity Caves | X0-1V1 vaporized surrounding terrain (radius 18) 47508 | -3/Proximity Caves | Destroyed B-86 Titan 47604 | -3/Proximity Caves | Entered Research 47604 | -3/Research | Accompanied by 2 allies 47604 | -3/Research | Evolved 2 slots: Utility x1, Weapon x1 47605 | -3/Research | Identified exit to Quarantine 47606 | -3/Research | Identified exit to Research 47608 | -3/Research | Loaded intel: 128 machine locations 47609 | -3/Research | Loaded intel: 23 terminal locations 47793 | -3/Research | Identified Vortex Driver (x2) 47804 | -3/Research | X0-1V1 downgraded hostiles (x1) 47804 | -3/Research | Revision forces began assault on 0b10 47814 | -3/Research | Identified Vortex Chain Reactor 47815 | -3/Research | Identified System Mapper 47868 | -3/Research | Weapon slot count temporarily expanded by X0-1V1 (+1) 47872 | -3/Research | Met up with Revision 17++ 48172 | -3/Research | X0-1V1 revealed exit location to -3/Quarantine 48247 | -3/Research | Found Prototype Launcher 48247 | -3/Research | Identified Tactical Quantum Warhead 48304 | -3/Research | Research terminal network offline 48385 | -3/Research | Weapon slot count reverted to normal (-1) 48394 | -3/Research | X0-1V1 activates XOMVISION 48595 | -3/Research | Discovered exit to Research (range 9) 48816 | -3/Research | Spotted Striker 48821 | -3/Research | Destroyed Striker 48848 | -3/Research | Lost 4 allies 48900 | -3/Research | Spotted B-86 Titan 48921 | -3/Research | Destroyed B-86 Titan 49109 | -3/Research | X0-1V1 sent you to a vault 49257 | -3/Research | Spotted Striker 49262 | -3/Research | Destroyed Striker 49401 | -3/Research | X0-1V1 activates XOMVISION 49414 | -3/Research | Spotted Striker 49415 | -3/Research | Destroyed Striker 49419 | -3/Research | Spotted Striker 49427 | -3/Research | Destroyed Striker 49464 | -3/Research | Destroyed 7 combat bots 49550 | -3/Research | X0-1V1 mutated your Weapon slot to Power slot 49697 | -3/Research | System corruption reached 10% 49726 | -3/Research | Discovered exit to Research (range 15) 49760 | -3/Research | Found Exp. Core Analyzer 49762 | -3/Research | Spotted Striker 49765 | -3/Research | Found Exp. Targeting Computer 49787 | -3/Research | Spotted Executioner 49791 | -3/Research | Destroyed Executioner 49795 | -3/Research | Destroyed Striker 49798 | -3/Research | Spotted Striker 49808 | -3/Research | Destroyed Striker 49808 | -3/Research | Lost 3 allies 49829 | -3/Research | Destroyed 7 combat bots 49978 | -3/Research | Spotted Striker 49982 | -3/Research | Destroyed Striker 49988 | -3/Research | Lost 4 allies 50051 | -3/Research | Spotted Striker 50053 | -3/Research | Destroyed Striker 50139 | -3/Research | Spotted Striker 50141 | -3/Research | Spotted Striker 50144 | -3/Research | Destroyed Striker 50147 | -3/Research | Destroyed Striker 50162 | -3/Research | Spotted Striker 50164 | -3/Research | Destroyed Striker 50187 | -3/Research | Spotted Striker 50194 | -3/Research | Destroyed Striker 50228 | -3/Research | Destroyed 16 combat bots 50291 | -3/Research | Spotted Striker 50291 | -3/Research | X0-1V1 sent you into danger 50293 | -3/Research | Destroyed Striker 50367 | -3/Research | Entered Quarantine 50440 | -3/Quarantine | Found Alien Artifact 50441 | -3/Quarantine | Identified Phase Redirector 50527 | -3/Quarantine | X0-1V1 sent hostile S-43 Plague (x5) 50578 | -3/Quarantine | Found Alien Energy Cannon 50579 | -3/Quarantine | Destroyed 8 combat bots 50587 | -3/Quarantine | Discovered exit to Research (range 21) 50647 | -3/Quarantine | Found Alien Artifact 50647 | -3/Quarantine | Identified Transdimensional Reconstructor (x2) 50647 | -3/Quarantine | Warped through subspace 50747 | -3/Quarantine | Found Alien Artifact 50799 | -3/Quarantine | Found Alien Artifact 50807 | -3/Quarantine | Found Transdimensional Reconstructor 50815 | -3/Quarantine | Found Alien Artifact 50817 | -3/Quarantine | Found Alien Artifact 50817 | -3/Quarantine | Identified Dimensional Node Initializer (x2) 50817 | -3/Quarantine | Initialized slip node 50820 | -3/Quarantine | Found Dimensional Node Initializer 50820 | -3/Quarantine | Initialized slip node 50882 | -3/Quarantine | X0-1V1 announced a LAN party 51016 | -3/Quarantine | X0-1V1 enhanced Transport squad support 51037 | -3/Quarantine | Build established: Scavenger-Construct 51048 | -3/Quarantine | Found Prototype Processor 51048 | -3/Quarantine | Identified Exp. Target Analyzer 51058 | -3/Quarantine | X0-1V1 vaporized surrounding terrain (radius 22) 51367 | -3/Quarantine | First assault squad dispatched 51447 | -3/Quarantine | System corruption reached 30% 51476 | -3/Quarantine | X0-1V1 sent allied Thug (x3) 51514 | -3/Quarantine | Found Alien Artifact 51514 | -3/Quarantine | Identified Terrabomb 51514 | -3/Quarantine | Used Terrabomb 51548 | -3/Quarantine | Found Terrabomb 51628 | -3/Quarantine | High security lockdown imminent 51646 | -3/Quarantine | Warped through subspace to slip node 51658 | -3/Quarantine | Found Alien Artifact 51658 | -3/Quarantine | Identified Hpw. Transdimensional Reconstructor 51658 | -3/Quarantine | Warped through subspace to slip node 51669 | -3/Quarantine | Lost 3 allies 51708 | -3/Quarantine | High security lockdown engaged 51887 | -3/Quarantine | Scanned by Researcher 51900 | -3/Quarantine | Spotted Investigator 51903 | -3/Quarantine | Weapon slot count temporarily expanded by X0-1V1 (+1) 51911 | -3/Quarantine | Destroyed Investigator 51930 | -3/Quarantine | Destroyed 15 combat bots 51980 | -3/Quarantine | Spotted Executioner 51980 | -3/Quarantine | Spotted Executioner 51997 | -3/Quarantine | Destroyed Executioner 52001 | -3/Quarantine | Destroyed Executioner 52021 | -3/Quarantine | Spotted Striker 52025 | -3/Quarantine | Destroyed 8 combat bots 52026 | -3/Quarantine | Destroyed Striker 52034 | -3/Quarantine | Spotted Executioner 52036 | -3/Quarantine | Spotted Executioner 52042 | -3/Quarantine | X0-1V1 turns hostiles against one another 52054 | -3/Quarantine | Destroyed Executioner 52056 | -3/Quarantine | Destroyed Executioner 52086 | -3/Quarantine | X0-1V1 sent allied Executioner (x1) 52115 | -3/Quarantine | Destroyed 28 combat bots 52115 | -3/Quarantine | Lost 3 allies 52221 | -3/Quarantine | Spotted Striker 52225 | -3/Quarantine | Spotted Investigator 52231 | -3/Quarantine | Spotted Striker 52231 | -3/Quarantine | Destroyed Investigator 52253 | -3/Quarantine | Sterilization system engaged 52253 | -3/Quarantine | Non-combat units ordered to evacuate 52256 | -3/Quarantine | Destroyed Striker 52268 | -3/Quarantine | X0-1V1 sent allied Mutant (x2) 52270 | -3/Quarantine | Destroyed Striker 52283 | -3/Quarantine | Lost 3 parts (3u) 52286 | -3/Quarantine | Build established: Construct 52295 | -3/Quarantine | Destroyed 32 combat bots 52309 | -3/Quarantine | Found Alien Impact Weapon 52353 | -3/Quarantine | Combat units ordered to evacuate 52368 | -3/Quarantine | Weapon slot count reverted to normal (-1) 52498 | -3/Quarantine | Found Sigix Corpse 52505 | -3/Quarantine | Found Sigix Corpse 52519 | -3/Quarantine | Met incapacitated Sigix Warrior 52519 | -3/Quarantine | Lockdown squad dispatched 52535 | -3/Quarantine | Found Sigix Containment Pod 52553 | -3/Quarantine | Ambient heat levels rising (+10) 52565 | -3/Quarantine | Spotted Lightning 52567 | -3/Quarantine | Destroyed Lightning 52570 | -3/Quarantine | Spotted Lightning 52573 | -3/Quarantine | Spotted Lightning 52583 | -3/Quarantine | Core integrity fell below 50% 52584 | -3/Quarantine | Destroyed Lightning 52594 | -3/Quarantine | Destroyed Lightning 52603 | -3/Quarantine | Found Prototype Device 52603 | -3/Quarantine | Identified Exp. Phase Shifter 52611 | -3/Quarantine | Found Prototype Device 52611 | -3/Quarantine | Identified Exp. EM Shield 52614 | -3/Quarantine | Found Exp. Phase Shifter 52703 | -3/Quarantine | Ambient heat levels rising (+10) 52726 | -3/Quarantine | Found Alien Artifact 52796 | -3/Quarantine | Cryocooling Duct disabled 52853 | -3/Quarantine | Ambient heat levels rising (+10) 52901 | -3/Quarantine | Build established: Scavenger-Construct 52947 | -3/Quarantine | Entered Research 52947 | -2/Research | Warlord forces began assault on 0b10 52947 | -2/Research | Evolved 2 slots: Utility x1, Weapon x1 52948 | -2/Research | Identified exit to Testing 52971 | -2/Research | High security lockdown imminent 52972 | -2/Research | Distinguished unit "Knights of the Pentagonal Table" dispatched to help 52972 | -2/Research | Distinguished unit "Bridgeowners Association" dispatched to help 53051 | -2/Research | High security lockdown engaged 53057 | -2/Research | Research machine network offline 53106 | -2/Research | Spotted Striker 53154 | -2/Research | Lost 5 allies 53310 | -2/Research | Borebot progress halted 53335 | -2/Research | Spotted Striker 53337 | -2/Research | Destroyed Striker 53342 | -2/Research | Discovered new exit (range 10) 53364 | -2/Research | Lost 5 allies 53378 | -2/Research | Destroyed 11 combat bots 53433 | -2/Research | Spotted Executioner 53436 | -2/Research | Destroyed Executioner 53439 | -2/Research | Spotted Executioner 53474 | -2/Research | Met DD-05H 53475 | -2/Research | Lost 11 allies 53476 | -2/Research | Met up with Warlord 53516 | -2/Research | X0-1V1 activates XOMVISION 53542 | -2/Research | X0-1V1 added 0b10 threat records associated with you (minor) 53602 | -2/Research | Spotted B-90 Cyclops 53611 | -2/Research | Destroyed B-90 Cyclops 53635 | -2/Research | Borebot progress halted 53651 | -2/Research | Borebot progress halted 53776 | -2/Research | Spotted Striker 53778 | -2/Research | Spotted Striker 53778 | -2/Research | Spotted Striker 53781 | -2/Research | Destroyed Striker 53783 | -2/Research | Destroyed Striker 53785 | -2/Research | Destroyed MG-MUW(L) 53788 | -2/Research | Spotted Executioner 53789 | -2/Research | Destroyed Striker 53790 | -2/Research | X0-1V1 turns hostiles against one another 53807 | -2/Research | Spotted Executioner 53811 | -2/Research | Spotted Executioner 53813 | -2/Research | Destroyed Executioner 53815 | -2/Research | Destroyed Executioner 53873 | -2/Research | Lost 7 allies 53911 | -2/Research | X0-1V1 downgraded hostiles (x3) 53911 | -2/Research | Destroyed 29 combat bots 53928 | -2/Research | Destroyed Investigator 54150 | -2/Research | Spotted Striker 54151 | -2/Research | Spotted Striker 54154 | -2/Research | Destroyed Striker 54186 | -2/Research | Entered Testing 54257 | -2/Testing | Rewired PG-8AH1B74J03 54345 | -2/Testing | Protovariant out of control (PG-8AH1B74J03) 54345 | -2/Testing | Spotted PG-8AH1B74J03 54347 | -2/Testing | Destroyed PG-8AH1B74J03 54380 | -2/Testing | Found Prototype Energy Cannon 54380 | -2/Testing | Identified Null Cannon 54436 | -2/Testing | First assault squad dispatched 54448 | -2/Testing | Lost 4 allies 54670 | -2/Testing | X0-1V1 turns hostiles against one another 54872 | -2/Testing | Spotted Fortress 54911 | -2/Testing | Destroyed Fortress 55002 | -2/Testing | Discovered new exit (range 6) 55002 | -2/Testing | Discovered new exit (range 6) 55010 | -2/Testing | Entered Protoforge 55033 | -2/Protoforge | Superfortress began startup sequence 55197 | -2/Protoforge | Spotted Hotshot 55197 | -2/Protoforge | Spotted Hotshot 55208 | -2/Protoforge | Spotted Hotshot 55211 | -2/Protoforge | Spotted Hotshot 55211 | -2/Protoforge | Spotted Hotshot 55211 | -2/Protoforge | Spotted Hotshot 55221 | -2/Protoforge | Destroyed Hotshot 55227 | -2/Protoforge | Destroyed Hotshot 55234 | -2/Protoforge | Destroyed Hotshot 55235 | -2/Protoforge | Destroyed Hotshot 55260 | -2/Protoforge | First assault squad dispatched 55265 | -2/Protoforge | Spotted Hotshot 55265 | -2/Protoforge | Spotted Hotshot 55265 | -2/Protoforge | Spotted Hotshot 55267 | -2/Protoforge | Spotted Hotshot 55267 | -2/Protoforge | Spotted Hotshot 55281 | -2/Protoforge | Destroyed Hotshot 55284 | -2/Protoforge | Destroyed Hotshot 55287 | -2/Protoforge | Destroyed Hotshot 55288 | -2/Protoforge | Destroyed Hotshot 55290 | -2/Protoforge | Spotted B-90 Cyclops 55290 | -2/Protoforge | Destroyed B-90 Cyclops 55293 | -2/Protoforge | Destroyed Hotshot 55332 | -2/Protoforge | Destroyed 9 combat bots 55337 | -2/Protoforge | Spotted Hotshot 55339 | -2/Protoforge | Spotted Hotshot 55339 | -2/Protoforge | Destroyed Hotshot 55340 | -2/Protoforge | Spotted Hotshot 55341 | -2/Protoforge | Destroyed Hotshot 55341 | -2/Protoforge | Destroyed Hotshot 55341 | -2/Protoforge | Spotted Hotshot 55360 | -2/Protoforge | Destroyed Hotshot 55372 | -2/Protoforge | Discovered new exit (range 9) 55372 | -2/Protoforge | Spotted Hotshot 55372 | -2/Protoforge | Spotted Hotshot 55374 | -2/Protoforge | Destroyed Hotshot 55376 | -2/Protoforge | Destroyed Hotshot 55377 | -2/Protoforge | Destroyed Hotshot 55380 | -2/Protoforge | Destroyed Hotshot 55403 | -2/Protoforge | Destroyed 14 combat bots 55416 | -2/Protoforge | Initialized slip node 55595 | -2/Protoforge | Found Prototype Slashing Weapon 55595 | -2/Protoforge | Identified Exp. Terror Saw 55604 | -2/Protoforge | Used Terrabomb 55604 | -2/Protoforge | Additional patrols dispatched to research labs 55610 | -2/Protoforge | Destroyed 7 combat bots 55640 | -2/Protoforge | Crushed by falling debris 55658 | -2/Protoforge | Found Prototype Device 55658 | -2/Protoforge | Identified Crosscalibrator 55674 | -2/Protoforge | Spotted Decapitator 55674 | -2/Protoforge | Spotted Decapitator 55674 | -2/Protoforge | Spotted Decapitator 55674 | -2/Protoforge | Spotted Decapitator 55679 | -2/Protoforge | System corruption reached 10% 55683 | -2/Protoforge | Destroyed Decapitator 55686 | -2/Protoforge | Destroyed Decapitator 55689 | -2/Protoforge | Destroyed Decapitator 55691 | -2/Protoforge | Destroyed Decapitator 55692 | -2/Protoforge | Spotted Hotshot 55696 | -2/Protoforge | Spotted Hotshot 55717 | -2/Protoforge | Destroyed Hotshot 55719 | -2/Protoforge | Spotted Hotshot 55721 | -2/Protoforge | Spotted Hotshot 55739 | -2/Protoforge | X0-1V1 activates XOMVISION 55755 | -2/Protoforge | Destroyed Hotshot 55757 | -2/Protoforge | Destroyed Hotshot 55763 | -2/Protoforge | Destroyed Hotshot 55793 | -2/Protoforge | Found Prototype Device 55793 | -2/Protoforge | Identified Cep. Weapon Articulator 55797 | -2/Protoforge | Found Prototype Device 55797 | -2/Protoforge | Identified Mni. Quantum Capacitor 55801 | -2/Protoforge | Found Prototype Device 55801 | -2/Protoforge | Identified Cep. Networked Targeting System 55806 | -2/Protoforge | Found Cep. Countertargeting System 55808 | -2/Protoforge | Found Cep. Networked Targeting System 55976 | -2/Protoforge | X0-1V1 sent hostile H-88 Terminator (x3) 56053 | -2/Protoforge | Spotted Immortal 56053 | -2/Protoforge | Spotted Immortal 56053 | -2/Protoforge | Spotted Immortal 56057 | -2/Protoforge | Destroyed Immortal 56065 | -2/Protoforge | Destroyed Immortal 56068 | -2/Protoforge | Destroyed Immortal 56073 | -2/Protoforge | Found Prototype Device 56073 | -2/Protoforge | Identified Exp. Cloaking Device 56082 | -2/Protoforge | Found Cep. Phase Shift Module 56087 | -2/Protoforge | Spotted V371-q 56087 | -2/Protoforge | Spotted V327-t 56087 | -2/Protoforge | Spotted V071-p 56087 | -2/Protoforge | Spotted V443-a 56240 | -2/Protoforge | Spotted V649-f 56240 | -2/Protoforge | Spotted V389-c 56241 | -2/Protoforge | Spotted Decapitator 56241 | -2/Protoforge | Spotted Decapitator 56241 | -2/Protoforge | Spotted Decapitator 56243 | -2/Protoforge | Destroyed 24 combat bots 56247 | -2/Protoforge | Destroyed Decapitator 56249 | -2/Protoforge | Destroyed Decapitator 56252 | -2/Protoforge | Destroyed Decapitator 56274 | -2/Protoforge | Found Cep. Zero-point Core 56303 | -2/Protoforge | Destroyed V389-c 56309 | -2/Protoforge | Destroyed V649-f 56335 | -2/Protoforge | Spotted V866-m 56345 | -2/Protoforge | Destroyed V866-m 56437 | -2/Protoforge | Spotted Decapitator 56437 | -2/Protoforge | Spotted Decapitator 56437 | -2/Protoforge | Spotted Decapitator 56437 | -2/Protoforge | Spotted Decapitator 56444 | -2/Protoforge | Destroyed Decapitator 56444 | -2/Protoforge | Destroyed Decapitator 56454 | -2/Protoforge | Destroyed Decapitator 56455 | -2/Protoforge | Destroyed Decapitator 56501 | -2/Protoforge | Found Faulty Cep. Miniperforator 56507 | -2/Protoforge | Found Prototype Device 56507 | -2/Protoforge | Identified Exp. Thermal Defense Suite 56517 | -2/Protoforge | Spotted V519-p 56520 | -2/Protoforge | Destroyed V519-p 56524 | -2/Protoforge | Found Prototype Energy Cannon 56524 | -2/Protoforge | Identified Cep. Plasma Driver 56528 | -2/Protoforge | Found Cep. XC Strikerail 56535 | -2/Protoforge | Found Cep. Helical Railcannon 56579 | -2/Protoforge | Found Cep. Helical Railcannon 56591 | -2/Protoforge | Found Cep. Plasma Driver 56671 | -2/Protoforge | Spotted Immortal 56671 | -2/Protoforge | Spotted Immortal 56678 | -2/Protoforge | X0-1V1 sent allied Wasp (x3) 56684 | -2/Protoforge | Spotted V603-k 56686 | -2/Protoforge | Allies destroyed Immortal 56695 | -2/Protoforge | Destroyed Immortal 56696 | -2/Protoforge | Spotted V408-p 56698 | -2/Protoforge | Spotted V605-x 56699 | -2/Protoforge | Spotted V165-l 56708 | -2/Protoforge | Destroyed V408-p 56720 | -2/Protoforge | Destroyed V605-x 56721 | -2/Protoforge | Lost 3 allies 56727 | -2/Protoforge | Destroyed V603-k 56751 | -2/Protoforge | Found Prototype Device 56751 | -2/Protoforge | Identified Exp. Shock Absorption System 56754 | -2/Protoforge | Lost 3 parts (3u) 56759 | -2/Protoforge | Found Prototype Storage 56759 | -2/Protoforge | Identified Cep. NT7 Matterbank 56760 | -2/Protoforge | Destroyed 8 combat bots 56797 | -2/Protoforge | Found Cep. Antigrav Storage Unit 56800 | -2/Protoforge | Found Faulty Cep. Matter Streamer 56807 | -2/Protoforge | Found Cep. Antigrav Storage Unit 56824 | -2/Protoforge | Found Faulty Cep. Matter Streamer 56844 | -2/Protoforge | Build established: Construct 56868 | -2/Protoforge | Destroyed 7 combat bots 56942 | -2/Protoforge | Found Faulty Cep. Tactical Fusion Warhead 56945 | -2/Protoforge | Found Cep. EMP Blanket Launcher 56969 | -2/Protoforge | Found Prototype Launcher 56969 | -2/Protoforge | Identified Cep. Rapid Grenade Launcher 57002 | -2/Protoforge | Spotted AP7-3 57002 | -2/Protoforge | Spotted AP7-3 57015 | -2/Protoforge | Destroyed AP7-3 57034 | -2/Protoforge | Destroyed AP7-3 57054 | -2/Protoforge | Found Prototype Processor 57054 | -2/Protoforge | Identified Cep. Core Analysis Suite 57058 | -2/Protoforge | Found Cep. Cloak Mesh 57064 | -2/Protoforge | Found Cep. Thermoelectric Network 57068 | -2/Protoforge | Found Cep. Thermoelectric Network 57074 | -2/Protoforge | Found Cep. Impact Drone Bay 57079 | -2/Protoforge | Found Faulty Cep. Impact Drone Bay 57147 | -2/Protoforge | Identified Phase Armor 57264 | -2/Protoforge | Destroyed 13 combat bots 57277 | -2/Protoforge | X0-1V1 activates XOMVISION 57283 | -2/Protoforge | Identified Subatomic Replicator 57283 | -2/Protoforge | Used Subatomic Replicator to replicate Faulty Cep. Tactical Fusion Warhead 57523 | -2/Protoforge | Spotted V297-e 57531 | -2/Protoforge | Destroyed V297-e 57546 | -2/Protoforge | Found Prototype Device 57546 | -2/Protoforge | Identified Exp. Force Booster 57549 | -2/Protoforge | Found Prototype Device 57549 | -2/Protoforge | Identified Exp. Kinecellerator 57562 | -2/Protoforge | Found Mni. Quantum Capacitor 57632 | -2/Protoforge | Found Prototype Device 57632 | -2/Protoforge | Identified Cep. Hardlight Director 57638 | -2/Protoforge | Found Prototype Device 57638 | -2/Protoforge | Identified Cep. Reaction Jets 57642 | -2/Protoforge | Found Prototype Device 57642 | -2/Protoforge | Identified Cep. Energy Mantle 57656 | -2/Protoforge | Found Cep. Phase Shift Module 57666 | -2/Protoforge | X0-1V1 sent allied B-99 Colossus (x1) 57680 | -2/Protoforge | Allies destroyed V327-t 57686 | -2/Protoforge | Destroyed V443-a 57692 | -2/Protoforge | Allies destroyed V071-p 57693 | -2/Protoforge | Destroyed V371-q 57714 | -2/Protoforge | Destroyed 7 combat bots 57778 | -2/Protoforge | Forcibly received Sfc. Transmogifier from X0-1V1 57779 | -2/Protoforge | Destroyed 22 combat bots 57829 | -2/Protoforge | Core integrity fell below 50% 57898 | -2/Protoforge | Spotted Immortal 57914 | -2/Protoforge | Spotted Executioner 57918 | -2/Protoforge | Spotted Executioner 57934 | -2/Protoforge | Core integrity fell below 20% 57942 | -2/Protoforge | Destroyed 24 combat bots 57943 | -2/Protoforge | Spotted Executioner 57955 | -2/Protoforge | Destroyed Immortal 57957 | -2/Protoforge | High security lockdown imminent 57957 | -2/Protoforge | Destroyed Superfortress 57959 | -2/Protoforge | Warped through subspace to slip node 57964 | -2/Protoforge | Lost 3 parts (2u1w) 57991 | -2/Protoforge | Entered Access 57991 | -1/Access | Evolved 2 slots: Utility x2 58048 | -1/Access | High security lockdown imminent 58128 | -1/Access | High security lockdown engaged 58178 | -1/Access | Spotted B-99 Colossus 58196 | -1/Access | Destroyed B-99 Colossus 58201 | -1/Access | X0-1V1 vaporized surrounding terrain (radius 15) 58363 | -1/Access | Destroyed 17 combat bots 58383 | -1/Access | Spotted B-99 Colossus 58452 | -1/Access | Found Prototype Launcher 58452 | -1/Access | Identified Gui. Micro-nuke Launcher 58551 | -1/Access | Build established: Gunner 58618 | -1/Access | Destroyed 8 combat bots 58673 | -1/Access | Identified exit to Command 58673 | -1/Access | X0-1V1 revealed exit location to -1/Command 58771 | -1/Access | Spotted Executioner 58773 | -1/Access | Energy Cycler disabled 58777 | -1/Access | Destroyed Executioner 58777 | -1/Access | Spotted Executioner 58785 | -1/Access | Destroyed Executioner 58788 | -1/Access | Found Exp. Core Analyzer 58794 | -1/Access | Found Prototype Device 58794 | -1/Access | Identified Adv. Kinecellerator 58874 | -1/Access | Spotted Striker 58874 | -1/Access | Destroyed Striker 58892 | -1/Access | Destroyed Executioner 58896 | -1/Access | Spotted Striker 58896 | -1/Access | Spotted Striker 58896 | -1/Access | Spotted Executioner 58898 | -1/Access | Destroyed Executioner 58898 | -1/Access | Destroyed Striker 58899 | -1/Access | Spotted Striker 58901 | -1/Access | Spotted Executioner 58904 | -1/Access | Destroyed Executioner 58908 | -1/Access | Destroyed Striker 58910 | -1/Access | Destroyed Executioner 58910 | -1/Access | Spotted Executioner 58922 | -1/Access | Spotted Executioner 58924 | -1/Access | Destroyed Executioner 58965 | -1/Access | Spotted Striker 58965 | -1/Access | Spotted Striker 58969 | -1/Access | Destroyed 44 combat bots 58971 | -1/Access | Spotted Investigator 58973 | -1/Access | Destroyed Investigator 58976 | -1/Access | Destroyed Striker 58985 | -1/Access | Spotted Executioner 58985 | -1/Access | Spotted Executioner 58986 | -1/Access | Allies destroyed Striker 58993 | -1/Access | Spotted Executioner 58994 | -1/Access | Allies destroyed Executioner 58995 | -1/Access | Allies destroyed Executioner 59000 | -1/Access | Allies destroyed Executioner 59008 | -1/Access | Lost 9 parts (1p1n4u3w) 59016 | -1/Access | Destroyed Executioner 59019 | -1/Access | Spotted Investigator 59021 | -1/Access | System corruption reached 10% 59024 | -1/Access | Destroyed Investigator 59035 | -1/Access | Lost 4 allies 59086 | -1/Access | Destroyed 68 combat bots 59116 | -1/Access | Found Adv. Kinecellerator 59211 | -1/Access | Warped through subspace 59212 | -1/Access | Core integrity fell below 50% 59215 | -1/Access | Lost 3 allies 59239 | -1/Access | Spotted Investigator 59239 | -1/Access | Spotted Executioner 59239 | -1/Access | Spotted Striker 59239 | -1/Access | Spotted Striker 59241 | -1/Access | Lost 9 parts (1p2n4u2w) 59257 | -1/Access | Build established: Mutant 59266 | -1/Access | Spotted Executioner 59266 | -1/Access | Spotted Executioner 59267 | -1/Access | Spotted Executioner 59267 | -1/Access | Spotted Executioner 59271 | -1/Access | Core integrity fell below 20% 59279 | -1/Access | Spotted B-99 Colossus 59280 | -1/Access | Spotted B-99 Colossus 59281 | -1/Access | Destroyed by B-99 Colossus with Multirail Last Messages --------------- 59267_ Exp. Heat Sink destroyed. 59269_ U-05 Engineer builds a Wall. 59270_ Slammed into D-83 Annihilator. 59270_ Penetrated by Slug. 59271_ Slammed into D-83 Annihilator. 59272_ Destabilizing: Core damaged (-27). 59273_ Slammed into D-83 Annihilator. 59273_ Exp. Core Analyzer blown off. 59273_ E-15 Imp destroyed. 59274_ Slammed into D-83 Annihilator. 59275_ X0-1V1 ensures you are ready for glorious battle (+Quantum Rifle). 59275_ Discarded Quantum Rifle. X0-1V1's Piety Tracker suddenly appears amidst shimmering waves of color. 59277_ O-24 Administrator: "IFF HANDSHAKE FAILED. SECURING TERMINAL." 59279_ Slug penetrates Wall. 59279_ Penetrated by Slug. 59281_ The swirling icy cloud dissipates. 59281_ Penetrated by Slug. 59281_ Scrap Engine destroyed. 59281_ X0-1V1 cackles wildly! Map ----- +----------------------------------------------------+ | ?????????????????????????????????????????????????? | | ?????????????????????????????????????????????????? | | ?????????????????????????????????????????????????? | | ?????????????????????????????????????????????????? | | ?????????????????????????????????????????????????? | | ?????????????????????????????????????????????????? | | ?????????????????????????????????????????????????? | | ?????????????????????????????????????????????????? | | ?????????????????????????????????????????????????? | | ?????????????????????????????????????????????????? | | ?????????????????????????????????????????????????? | | ?????????????????????????????????????????????????? | | ?????????????????????????????????????????????????? | | ?????????????????????????????????????????????????? | | ?????????????????????????????????????????????????? | | ?????????????????????????????????????????????????? | | ????????????????????#????????????????????????????? | | ????????????????????#"???????????????????????????? | | ????????????????????#"???????????????????????????? | | ????????????#####???#" ??????????????????????????? | | ????????????" ??? ??????????????????????????? | | ????????????" BB ?? ?????????????????????????? | | ????????????" BB ;##;#################### ????? | | ????????????" ???? | | ????????????" ! ???? | | ????????????" @ % % ???? | | ????????????" ????? | | ????????????" BB ########## ###+#??????????? | | ????????????" BB ???# ??# #??????????????? | | ????????????"???????# # #??????????????? | | ????????????????????# " + #?????????????## | | ????????????????????# """ # #?????????????# | | ????????????????????#! """??# + ????????????# | | ?##############?????# ????# # ???????????# | | ?# ! [ #?????? ??????####%# ?????????## | | ?# #?????????????????#%#? ????????#" | | ?# #?????????????????#%#?? ????????" | | ?# #?????????????????# #?? ??????# | | ?# #?????????????????# #??? ?????# | | ?# #?????????????????# #???? ?????# | | ?# !!!! ##??????######????# #?????###?????# | | ?# ["" ! ######## # ###??# #?????????????# | | ?# [ !! # #### ###???????????# | | ?# [ # # #???????????# | | ?# # ## # ??# | | ?# %" "/% ??# | | ## #######/#%## "# # ?# | | = # # # ??# | | %*% %= ## # ##? ??# | | ##########+##%# = ##### #???#######??# | +----------------------------------------------------+ Best States ------------- Heat Dissipation 201 Coolant Potential 120 Energy Generation 103 Energy Capacity 6026 Matter Stores 1000 Matter Capacity 1050 Sight Range 28 Robot Scan Range 19 Terrain Scan Density 10 Cloak Strength 6 Power Amplification 30 Base Temperature (-) 200 Armor Coverage 800 Resistance: KI 25 Resistance: TH 45 Resistance: EM 35 Core Shielding 30 Utility Shielding 90 Weapon Shielding 90 Weapon Cycling 25 Phase Shifting 25 Evasion (%) 98 Targeting Accuracy 24 Core Analysis 12 Armor Integrity Analysis 40 Recoil Reduction 5 Matter Filtering 50 Energy Filtering 50 Particle Charging 25 Kinecelleration 66 Salvage Targeting 6 Offensive Hacking 14 Item Schematics ----------------- Assault Drone Bay | -5/Zhirov | Free Exp. Heat Sink | -5/Zhirov | Free Exp. Optical Array | -5/Zhirov | Free Imp. Arc Thrower | -5/Zhirov | Free Cld. Antigrav System | -3/Quarantine | Archive Molecular Scythe | -3/Quarantine | Archive Prc. Matter Filter | -3/Quarantine | Archive Spectral Analyzer | -3/Quarantine | Archive Exp. Matter Compressor | -3/Quarantine | Archive Cld. Plasma Rifle | -3/Quarantine | Archive Exp. Melee Analysis Suite | -2/Protoforge | Archive Exp. EM Disruption Field | -2/Protoforge | Archive Robot Schematics ------------------ A-02 Transporter | -3/Quarantine | Archive R-10 Processor | -2/Protoforge | Archive Fabricated ------------ Exp. Heat Sink | x1 | -4/Factory Repaired ---------- Nothing Studied --------- EM Pulse Cannon | -8/Materials | Hacked Imp. Grenade Launcher | -8/Materials | Hacked Lgt. Treads | -8/Materials | Hacked Flak Cannon | -8/Materials | Hacked EMP Blaster | -8/Materials | Hacked Gatling Laser | -6/Factory | Hacked Imp. Carbon-fiber Leg | -6/Factory | Hacked Flak Gun | -6/Factory | Hacked Magnetic Acceleration Cannon | -6/Factory | Hacked Phase Cannon | -6/Factory | Hacked Tesla Rifle | -5/Factory | Hacked Alien Tech Used ----------------- Integrated Dissipator Phase Redirector Transdimensional Reconstructor Dimensional Node Initializer Terrabomb High-powered Transdimensional Reconstructor Phase Armor Subatomic Replicator Achievements -------------- None Challenges ------------ None Game ------ Seed NeutrinoChipDeconstructor Manual? 0 Play Time 09:03:31 Cumulative 675.2 hours Start 2026.09.18 @ 06:42:31 End 2026.09.18 @ 16:13:31 Sessions 1 Manual Loads 0 Difficulty Rogue Special Mode None Game No. 358 Rogue 358 Adventurer 0 Explorer 0 Win Type - Total 22 Types 10/3/3/1/1/0/1/1/0/2 Lore% 87 Gallery% 86 Achievement% 78 Wizard Run 0 Options --------- Layout 0 ASCII 0 Keyboard 0 Movement Mouse Keybinds 0 Fullscreen 1 Font 18/SmallcapsGlow Map View 76x50 Zoom Use 0% Tactical HUD 1 Map Filters NONE Filters NONE Steam 1 RUN: 7655dd05-e853-4404-9384-d463da2b3028